{"text_format":"1","workbook":"xlsx","n_sheets":41,"sheets":["modList01","Инструкция","Лог обновления","Титульный","Список МО","Показатели (факт)","Показатели (2)","Потр. характеристики","Инвестиции","Инвестиции исправления","Ссылки на публикации","Комментарии","Проверка","AllSheetsInThisWorkbook","TEHSHEET","et_union_hor","et_union_vert","modInfo","modRegion","modReestr","modfrmSelectData","modfrmReestr","modUpdTemplMain","REESTR_ORG","modClassifierValidate","modProv","modHyp","modList00","modList02","modList03","modList04","modList05","modList06","modList07","modfrmDateChoose","modComm","modThisWorkbook","REESTR_MO","modfrmReestrMR","modfrmCheckUpdates","CopyList"],"not_rendered":{"charts":0,"images":21,"macros":1,"external_links":0,"defined_names":178,"comments":0,"pivot_tables":0},"unopened":[],"bounds":{"document_bytes":16777216,"sheet_cells":100000,"rows_first":2000,"rows_last":500,"rows_between":2000,"halvings":0,"cell_chars":16384,"cell_head_chars":4096},"cells_cut":0,"cells_raw":0,"read":"whole","date_system":"1900"}

{"sheet":"modList01","index":0,"n_rows":0,"n_cols":0,"rows_kept":0,"cut":false,"hidden":true,"merged":[]}

{"sheet":"Инструкция","index":1,"n_rows":102,"n_cols":27,"rows_kept":102,"cut":false,"hidden":false,"merged":[[69,4,69,23],[20,15,20,23],[39,4,39,23],[21,5,21,12],[40,4,44,23],[22,15,22,22],[57,4,57,6],[58,4,58,6],[58,7,58,23],[57,7,57,23],[21,15,21,23],[34,4,38,23],[20,5,20,12],[45,4,56,23],[1,1,1,6],[2,1,2,2],[4,1,4,24],[6,4,18,23],[71,4,71,23],[81,7,81,23],[74,4,74,23],[76,4,76,23],[73,4,73,23],[70,4,70,23],[78,4,78,23],[83,7,83,23],[82,7,82,23],[97,4,97,23],[82,4,82,6],[79,4,79,7],[75,4,75,23],[59,4,59,6],[72,4,72,23],[60,7,60,23],[79,8,79,23],[59,7,59,23],[101,5,101,23],[99,5,99,18],[80,4,80,6],[80,7,80,23],[81,4,81,6]]}
[null,null,null,null,null,null,null,null,null,null,null,null,null,null,null,null,null,null,null,null,null,null,null,null,null,null," (требуется обновление)"]
[null,{"$f":"\"Код шаблона: \" & GetCode()","v":"Код шаблона: JKH.OPEN.INFO.BALANCE.WARM"}]
[null,{"$f":"\"Версия \" & GetVersion()","v":"Версия 6.0.1"}]
[]
[null,"Показатели, подлежащие раскрытию теплоснабжающими, теплосетевыми организациями"]
[]
[null,null,null,null,"• На рабочем месте должен быть установлен MS Office 2003 SP3, 2007 SP3, 2010 с полной версией MS Excel\n\n• Макросы во время работы должны быть включены (!)\n\n• Для корректной работы отчёта требуется выбрать низкий уровень безопасности\n(В меню MS Excel 2003: Сервис | Макрос | Безопасность | выбрать пункт «Низкая безопасность» | OK)\n(В меню MS Excel 2007/2010: Параметры Excel | Центр управления безопасностью | Параметры центра управления безопасностью | Параметры макросов | Включить все макросы | ОК)\n\n• Если Вы работаете в табличном процессоре MS Excel 2007 и выше, то можете использовать для работы формат XLSM (Книга Excel с поддержкой макросов). При работе в формате XLSM заметно быстрее происходит сохранение файла, а также уменьшается размер по сравнению с форматом XLS\n\n• Не рекомендуется снимать защиту с листов и каким-либо образом модифицировать защищаемые формулы и расчётные поля, в противном случае, отчёт будет отклонён системой\n\n• При сохранении не следует выбирать формат XLSX (Книга Excel), так как в указанном формате макросы, необходимые для работы отчёта, безвозвратно удаляются"]
[]
[]
[]
[]
[]
[]
[]
[]
[]
[]
[]
[]
[]
[null,null,null,null,"A"," - необязательные для заполнения",null,null,null,null,null,null,null,null,"A"," - с формулами и константами"]
[null,null,null,null,"A"," - обязательные для заполнения",null,null,null,null,null,null,null,null,"A"," - с выбором значений до двойному клику,"]
[null,null,null,null,null,null,null,null,null,null,null,null,null,null,null,"либо с возможностью выбора даты из календаря или ручного ввода"]
[]
[]
[]
[]
[]
[]
[]
[]
[]
[]
[]
[null,null,null,null,"Если в предложенном Вам списке необходимая организация, МР/МО отсутствуют, обновите реестры с помощью кнопок\n\nВ результате синхронизации с базой данных список организаций (МР/МО) будет заменён актуальным (механизм синхронизации требует подключения к сети Интернет и основан на использовании протокола HTTPS (TCP порт 443))\n\nЕсли после обновления Вам не удалось найти необходимую организацию в списке, обратитесь к ответственному за поддержание реестра Вашего региона. Информация о региональных органах регулирования доступна по ссылке:"]
[]
[]
[]
[]
[null,null,null,null,"http://www.fstrf.ru/regions/region/showlist"]
[]
[]
[]
[]
[]
[null,null,null,null,"• При сохранении шаблона осуществляется проверка корректности данных, в том числе на наличие значений в ячейках, обязательных для заполнения\n\n• Если какая-то ячейка не удовлетворяет условию проверки, на лист «Проверка» добавляется гиперссылка на данную ячейку и указывается причина ошибки\n\n• В колонке «Статус» для каждого сообщения возможны 2 значения: ошибка и предупреждение\n\n• При наличии сообщений со статусом «Ошибка» шаблон будет отклонён системой и не будет загружен в хранилище данных, сообщения со статусом «Предупреждение» носят информационный характер, и такой шаблон будет принят системой"]
[]
[]
[]
[]
[]
[]
[]
[]
[]
[]
[]
[null,null,null,null,"Web-сайт:",null,null,"http://support.eias.ru/index.php?a=add&catid=5"]
[null,null,null,null,"Дистрибутивы:",null,null,"http://eias.ru/?page=show_distrs"]
[null,null,null,null,null,null,null,"для устранения ошибок (например, \"Compile error in hidden module\")"]
[]
[]
[]
[]
[]
[]
[]
[]
[]
[null,null,null,null,"Принципы работы с шаблоном"]
[null,null,null,null," Перед началом работы с шаблоном Вам необходимо нажать кнопку \"Приступить к заполнению\", после чего на форме выбора выбрать из выпадающего списка нужный субъект РФ. После выбора субъекта РФ в шаблоне отобразятся листы для заполнения."]
[null,null,null,null," На листе «Титульный» нужно заполнить все ячейки голубого и синего цвета.\n Для создания печатной формы нажмите на иконку принтера на листе «Титульный» (левый верхний угол)."]
[null,null,null,null," Гиперссылки на листах вводите, не нарушая цвет ячейки (если копируете гиперссылку из браузера, то выполните двойной щелчок левой кнопки мыши по ячейке и только после этого можете вставить скопированный элемент).\n"]
[null,null,null,null," При вводе даты на расчетных листах необходимо выбрать дату из календаря (иконка справа от выбранной ячейки), либо ввести дату непосредственно в ячейку в формате - 'ДД.ММ.ГГГГ'."]
[null,null,null,null," Если какой-либо из показателей на расчетных листах для Вашей организации отсутствует, введите в поле, обязательное для заполнение, «0» (для числовых показателей) и «-» (для текстовых).\n"]
[null,null,null,null," Внимательно следите за информационными сообщениями на расчетных листах."]
[null,null,null,null," Все необходимые комментарии по всем формам Вы можете отразить на листе «Комментарии»."]
[]
[null,null,null,null,"Обосновывающие материалы (документы) необходимо загружать с помощью \"ЕИАС Мониторинг\""]
[null,null,null,null,"Инструкция",null,null,null,"http://eias.ru/files/shablon/manual_loading_through_monitoring.pdf"]
[]
[null,null,null,null,"E-mail:",null,null,"openinfo@eias.ru"]
[null,null,null,null,"Web-сайт:",null,null,"http://eias.ru/?page=show_templates"]
[]
[]
[]
[]
[]
[]
[]
[]
[]
[]
[]
[]
[]
[]
[null,null,null,null,"При наличии подключения к Интернет, можно автоматически проверять наличие доступных обновлений. Выберите способ оповещения о наличии обновлений для отчёта:"]
[]
[null,null,null,null,null,"проверять доступные обновления (рекомендуется)",null,null,null,null,null,null,null,null,null,null,null,null,null,null,null,null,null,null,null,null,"y"]
[]
[null,null,null,null,null,"никогда не проверять наличие обновлений (не рекомендуется)"]

{"sheet":"Лог обновления","index":2,"n_rows":22,"n_cols":3,"rows_kept":22,"cut":false,"hidden":true,"merged":[]}
["Дата/Время","Сообщение","Статус"]
[]
["2014-01-15T10:40:00","Проверка доступных обновлений...","Информация"]
["2014-01-15T10:40:01","Версия шаблона 6.0 актуальна, обновление не требуется","Информация"]
["2014-04-11T11:39:45","Проверка доступных обновлений...","Информация"]
["2014-04-11T11:39:45","Доступно обновление до версии 6.0.1","Информация"]
["2014-04-11T11:39:45","Описание изменений: Версия 6.0.1 (только(!!!) для шаблонов версии 6.0)\n1. корректировка наименования п.4 (новое значение - \"Сведения об изменении стоимости основных фондов (в том числе за счет их ввода в эксплуатацию (вывода из эксплуатации)), их переоценки\") листа \"Показатели (факт)\",\n2. корректировка п.5, п.5.1 в части возможности ввода отрицательных значений,\n3. увеличение списка видов деятельности на листе \"Титульный\".\n\n\nЕсли версия Вашего шаблона ниже 6.0, обратитесь к администратору Вашего субъекта РФ.","Информация"]
["2014-04-11T11:39:45","Размер файла обновления: 282624 байт","Информация"]
["2014-04-11T11:39:49","Подготовка к обновлению...","Информация"]
["2014-04-11T11:39:55","Сохранение файла резервной копии: C:\\Users\\borinskih\\Desktop\\Запросы через ЕИАС Мониторинг\\2014\\15 01 Багно\\ШАБЛОНЫ В ОБЩЕМ МАССИВЕ\\11.BKP.xlsm","Информация"]
["2014-04-11T11:39:56","Резервная копия создана: C:\\Users\\borinskih\\Desktop\\Запросы через ЕИАС Мониторинг\\2014\\15 01 Багно\\ШАБЛОНЫ В ОБЩЕМ МАССИВЕ\\11.BKP.xlsm","Информация"]
["2014-04-11T11:39:56","Создание книги для установки обновлений...","Информация"]
["2014-04-11T11:39:58","Файл обновления загружен: C:\\Users\\borinskih\\Desktop\\Запросы через ЕИАС Мониторинг\\2014\\15 01 Багно\\ШАБЛОНЫ В ОБЩЕМ МАССИВЕ\\UPDATE.JKH.OPEN.INFO.BALANCE.WARM.TO.6.0.1.40.xls","Информация"]
["2014-04-11T11:40:02","Обновление завершилось удачно! Шаблон JKH.OPEN.INFO.BALANCE.WARM.xlsm сохранен под именем 'JKH.OPEN.INFO.BALANCE.WARM(v6.0.1).xlsm'","Информация"]
["2015-08-29T13:24:20","Проверка доступных обновлений...","Информация"]
["2015-08-29T13:24:20","Версия шаблона 6.0.1 актуальна, обновление не требуется","Информация"]
["2015-08-29T14:49:56","Проверка доступных обновлений...","Информация"]
["2015-08-29T14:49:56","Версия шаблона 6.0.1 актуальна, обновление не требуется","Информация"]
["2015-08-31T14:30:08","Проверка доступных обновлений...","Информация"]
["2015-08-31T14:30:08","Версия шаблона 6.0.1 актуальна, обновление не требуется","Информация"]
["2015-10-22T16:13:02","Проверка доступных обновлений...","Информация"]
["2015-10-22T16:13:03","Версия шаблона 6.0.1 актуальна, обновление не требуется","Информация"]

{"sheet":"Титульный","index":3,"n_rows":56,"n_cols":6,"rows_kept":56,"cut":false,"hidden":false,"merged":[[4,4,4,5]]}
[null,null,null,null,null,27882380]
[]
[]
[null,null,null,null,null,{"$f":"version","v":"Версия 6.0.1"}]
[null,null,null,null,"Показатели, подлежащие раскрытию теплоснабжающими, теплосетевыми организациями"]
[]
[null,null,null,null,"Субъект РФ","Ставропольский край"]
[]
[null,null,null,null,"Публикация","На сайте регулирующего органа"]
[]
["Сайт организации в сети Интернет",null,null,null,"По желанию организации информация раскрыта в дополнительных источниках публикации?","нет"]
[]
[null,null,null,null,"Отчетный период (год)",2014]
[]
[null,null,null,null,"Является ли данное юридическое лицо подразделением (филиалом) другой организации","нет"]
[]
[null,null,null,null,"Наименование организации","ООО \"ЭНЕРГЕТИК\" (котельная \"Машук\" в г. Пятигорске)"]
[null,null,null,null,"Наименование филиала"]
[null,null,null,null,"ИНН","2618800660"]
[null,null,null,null,"КПП","261801001"]
[]
[null,null,null,null,"Вид деятельности","Производство (некомбинированная выработка)+передача+сбыт"]
[]
[null,null,null,null,"Производство",""]
[null,null,null,null,"Передача",""]
[null,null,null,null,"Сбыт",""]
[]
[null,null,null,null,"Режим налогообложения","общий"]
[]
[null,null,null,null,"Регулируемая организация осуществляет сдачу годового бухгалтерского баланса в налоговые органы","да"]
[]
[null,null,null,null,"Дата направления годового бухгалтерского баланса в налоговые органы","30.04.2015"]
[]
[null,null,null,null,"Превышает ли выручка от регулируемой деятельности 80% совокупной выручки за отчетный год","да"]
[]
[null,null,null,null,"Организация выполняет инвестиционную программу","нет"]
[]
["Печатное издание",null,null,null,"Отсутствует Интернет в границах территории муниципальных образований, где организация осуществляет регулируемые услуги","нет"]
[]
[null,null,null,null,null,"Адрес регулируемой организации"]
[null,null,null,null,"Юридический адрес","357390, Ставропольский край, Предгорный р-н, Суворовская ст-ца, Подгорная ул, дом № 5"]
[null,null,null,null,"Почтовый адрес","357500, Ставропольский край, Пятигорск г, Энергетик п, Юго-восточный склон горы Машук"]
[]
[null,null,null,null,null,"Руководитель"]
[null,null,null,null,"Фамилия, имя, отчество","Панасенко Юрий Викторович"]
[null,null,null,null,"(код) номер телефона","(8793) 30-20-95"]
[]
[null,null,null,null,null,"Главный бухгалтер"]
[null,null,null,null,"Фамилия, имя, отчество","Постникова Валентина Анатольевна"]
[null,null,null,null,"(код) номер телефона","(8793) 30-20-95"]
[]
[null,null,null,null,null,"Должностное лицо, ответственное за составление формы"]
[null,null,null,null,"Фамилия, имя, отчество","Звездин Михаил Юрьевич"]
[null,null,null,null,"Должность","Ведущий инженер"]
[null,null,null,null,"(код) номер телефона","(8793) 30-20-95"]
[null,null,null,null,"e-mail","k_mashuk@mail.ru"]

{"sheet":"Список МО","index":4,"n_rows":16,"n_cols":8,"rows_kept":16,"cut":false,"hidden":false,"merged":[[8,5,8,7],[13,3,14,3],[13,4,14,4],[3,3,3,7],[4,3,4,7],[6,5,6,7],[7,5,7,7]]}
[]
[]
[]
[null,null,null,"Дифференциация тарифа"]
[null,null,null,{"$f":"IF(org=0,\"Не определено\",org)","v":"ООО \"ЭНЕРГЕТИК\" (котельная \"Машук\" в г. Пятигорске)"}]
[]
[null,null,null,null,null,"Система теплоснабжения"]
[null,null,null,null,"Условный порядковый номер",1]
[null,null,null,null,"Описание","Котельная \"Машук\""]
[]
[null,null,null,"№ п/п","Муниципальный район","№ п/п","Муниципальное образование","ОКТМО"]
[null,null,null,"1","2","3","4","5"]
[null,null,null,0,null,0]
[null,null,"О",1,"Город-курорт Пятигорск",1,"Город-курорт Пятигорск","07727000"]
[null,null,null,null,null,null,"Добавить МО"]
[null,null,null,null,"Добавить МР"]

{"sheet":"Показатели (факт)","index":5,"n_rows":73,"n_cols":8,"rows_kept":73,"cut":false,"hidden":false,"merged":[[72,4,72,6],[4,3,4,6],[5,3,5,6],[17,0,21,0]]}
[]
[]
[]
[]
[null,null,null,"Информация об основных показателях финансово-хозяйственной деятельности регулируемых организаций, включая структуру основных производственных затрат\n(в части регулируемой деятельности) *"]
[null,null,null,{"$f":"IF(org=0,\"Не определено\",org)","v":"ООО \"ЭНЕРГЕТИК\" (котельная \"Машук\" в г. Пятигорске)"}]
[]
[null,null,null,"№ п/п","Информация, подлежащая раскрытию","Единица измерения","Значение"]
[null,null,null,"1","2","3","4"]
[null,null,null,"1","Выручка от регулируемой деятельности, в том числе по видам деятельности:","тыс руб",{"$f":"SUM(G11:G13)","v":31042}]
[null,null,null,"1.0"]
[null,null,"О","1.1","Теплоснабжение","тыс руб",31042]
[null,null,null,null,"Добавить вид деятельности"]
[null,null,null,"2","Себестоимость производимых товаров (оказываемых услуг) по регулируемому виду деятельности, включая: ","тыс руб",{"$f":"SUM(G15:G16)+G24+SUM(G27:G35)+G38+G41+G43","v":35247.137579999995}]
[null,null,null,"2.1","Расходы на покупаемую тепловую энергию (мощность), теплоноситель","тыс руб",0]
[null,null,null,"2.2","Расходы на топливо","тыс руб",{"$f":"SUMIF(flagSum_List02_2,\"p\",G17:G23)","v":16766.828579999998}]
["2.2.0",null,null,{"$f":"A17","v":"2.2.0"}]
["2.2.1",null,"О",{"$f":"A18","v":"2.2.1"},"газ природный по регулируемой цене","x",{"$f":"G19*G20+G21","v":16766.828579999998},"p"]
[null,null,null,{"$f":"A18&\".1\"","v":"2.2.1.1"},"Объем","тыс м3",3389.43]
[null,null,null,{"$f":"A18&\".2\"","v":"2.2.1.2"},"Стоимость за единицу объема","тыс руб",4.4059999999999997]
[null,null,null,{"$f":"A18&\".3\"","v":"2.2.1.3"},"Стоимость доставки","тыс руб",1833]
[null,null,null,{"$f":"A18&\".4\"","v":"2.2.1.4"},"Способ приобретения","x","прямые договора без торгов"]
[null,null,null,null,"Добавить вид топлива"]
[null,null,null,"2.3","Расходы на покупаемую электрическую энергию (мощность), используемую в технологическом процессе","тыс руб",2025]
[null,null,null,"2.3.1","Средневзвешенная стоимость 1 кВт.ч (с учетом мощности)","руб",2.8580000000000001]
[null,null,null,"2.3.2","Объем приобретенной электрической энергии","тыс кВт.ч",137.77799999999999]
[null,null,null,"2.4","Расходы на приобретение холодной воды, используемой в технологическом процессе","тыс руб",216]
[null,null,null,"2.5","Расходы на хим.реагенты, используемые в технологическом процессе","тыс руб",0]
[null,null,null,"2.6","Расходы на оплату труда основного производственного персонала","тыс руб",3353]
[null,null,null,"2.7","Отчисления на социальные нужды основного производственного персонала","тыс руб",972]
[null,null,null,"2.8","Расходы на оплату труда административно-управленческого персонала","тыс руб",2585]
[null,null,null,"2.9","Отчисления на социальные нужды административно-управленческого персонала","тыс руб",675]
[null,null,null,"2.10","Расходы на амортизацию основных производственных средств","тыс руб",397.30900000000003]
[null,null,null,"2.11","Расходы на аренду имущества, используемого для осуществления регулируемого вида деятельности","тыс руб",0]
[null,null,null,"2.12","Общепроизводственные расходы, в том числе отнесенные к ним:","тыс руб",2157]
[null,null,null,"2.12.1","Расходы на текущий ремонт","тыс руб",957]
[null,null,null,"2.12.2","Расходы на капитальный ремонт","тыс руб",0]
[null,null,null,"2.13","Общехозяйственные расходы, в том числе отнесенные к ним:","тыс руб",6100]
[null,null,null,"2.13.1","Расходы на текущий ремонт","тыс руб",160]
[null,null,null,"2.13.2","Расходы на капитальный ремонт","тыс руб",0]
[null,null,null,"2.14","Расходы на капитальный и текущий ремонт основных производственных средств, в том числе:","тыс руб",0]
[null,null,null,"2.14.1","Информация об объемах товаров и услуг, их стоимости и способах приобретения у тех организаций, сумма оплаты услуг которых превышает 20 процентов суммы расходов по указанной статье расходов","x","отсутствует"]
[null,null,null,"2.15","Прочие расходы, которые подлежат отнесению на регулируемые виды деятельности в соответствии с законодательством РФ","тыс руб",{"$f":"SUM(G44:G45)","v":0}]
[null,null,null,"2.15.0"]
[null,null,null,null,"Добавить прочие расходы"]
[null,null,null,"3","Валовая прибыль (убытки) от реализации товаров и оказания услуг по регулируемому виду деятельности","тыс руб",-4205.1400000000003]
[null,null,null,"4","Чистая прибыль, полученная от регулируемого вида деятельности, в том числе:","тыс руб",0]
[null,null,null,"4.1","Размер расходования чистой прибыли на финансирование мероприятий, предусмотренных инвестиционной программой","тыс руб",0]
[null,null,null,"5","Сведения об изменении стоимости основных фондов, в том числе за счет их ввода в эксплуатацию (вывода из эксплуатации), а также стоимости их переоценки","тыс руб",0]
[null,null,null,"5.1","За счет ввода (вывода) из эксплуатации","тыс руб",0]
[null,null,null,"6","Стоимость переоценки основных фондов","тыс руб",0]
[null,null,null,"7","Годовая бухгалтерская отчетность, включая бухгалтерский баланс и приложения к нему","x","http://energetic-mashuk.ru/docs/Buhotchetnost_2014%20god.PDF"]
[null,null,null,"8","Установленная тепловая мощность объектов основных фондов, используемых для осуществления регулируемых видов деятельности, в том числе по каждому источнику тепловой энергии:","Гкал/ч",20]
[null,null,null,"8.0"]
[null,null,null,null,"Добавить источник тепловой энергии"]
[null,null,null,"9","Тепловая нагрузка по договорам, заключенным в рамках осуществления регулируемых видов деятельности","Гкал/ч",14.2]
[null,null,null,"10","Объем вырабатываемой регулируемой организацией тепловой энергии в рамках осуществления регулируемых видов деятельности","тыс Гкал",24.6]
[null,null,null,"11","Объем приобретаемой регулируемой организацией тепловой энергии в рамках осуществления регулируемых видов деятельности","тыс Гкал",0]
[null,null,null,"12","Объем тепловой энергии, отпускаемой потребителям по договорам, заключенным в рамках осуществления регулируемых видов деятельности, в том числе:","тыс Гкал",{"$f":"SUM(G60:G61)","v":24.6}]
[null,null,null,"12.1","Определенном по приборам учета","тыс Гкал",21.155999999999999]
[null,null,null,"12.2","Определенном расчетным путем (нормативам потребления коммунальных услуг)","тыс Гкал",{"$f":"24.6-G60","v":3.4440000000000026}]
[null,null,null,"13","Нормативы технологических потерь при передаче тепловой энергии, теплоносителя по тепловым сетям, утвержденные уполномоченным органом","Ккал/ч.мес",0]
[null,null,null,"14","Фактический объем потерь при передаче тепловой энергии","тыс Гкал",3.4]
[null,null,null,"15","Среднесписочная численность основного производственного персонала"," чел",20]
[null,null,null,"16","Среднесписочная численность административно-управленческого персонала"," чел",4]
[null,null,null,"17","Удельный расход условного топлива на единицу тепловой энергии, отпускаемой в тепловую сеть, в том числе с разбивкой по источникам тепловой энергии, используемым для осуществления регулируемых видов деятельности","кг усл. топл/Гкал",156.19999999999999]
[null,null,null,"17.0"]
[null,null,null,null,"Добавить источник тепловой энергии"]
[null,null,null,"18","Удельный расход электрической энергии на производство (передачу) тепловой энергии на единицу тепловой энергии, отпускаемой потребителям по договорам, заключенным в рамках осуществления регулируемой деятельности","тыс кВт.ч/Гкал",24]
[null,null,null,"19","Удельный расход холодной воды на производство (передачу) тепловой энергии на единицу тепловой энергии, отпускаемой потребителям по договорам, заключенным в рамках осуществления регулируемой деятельности","м3/Гкал",{"$f":"6000/24","v":250}]
[null,null,null,"20","Комментарии","x","-"]
[]
[null,null,null,"*","Раскрывается не позднее 30 дней со дня сдачи годового бухгалтерского баланса в налоговые органы."]

{"sheet":"Показатели (2)","index":6,"n_rows":14,"n_cols":16,"rows_kept":14,"cut":false,"hidden":true,"merged":[[9,4,9,13],[4,3,4,8],[5,3,5,8]]}
[]
[]
[]
[]
[null,null,null,"Информация об объемах товаров и услуг, их стоимости и способах приобретения *"]
[null,null,null,{"$f":"IF(org=0,\"Не определено\",org)","v":"ООО \"ЭНЕРГЕТИК\" (котельная \"Машук\" в г. Пятигорске)"}]
[]
[null,null,null,"№ п/п","Наименование поставщика",null,"№ п/п","Способ приобретения","Реквизиты договора",null,"№ п/п","Наименование товара/услуги","Объем приобретенных товаров, услуг","Единица измерения объема","Стоимость, тыс.руб.","Доля расходов, % (от суммы расходов по указанной статье)"]
[null,null,null,"1","2",null,"3","4","5",null,"6","7","8","9","10","11"]
[null,null,null,null,"Расходы на ремонт (текущий и капитальный) основных производственных средств итого. Из них товары и услуги, приобретенные у организаций, сумма оплаты услуг которых превышает 20% суммы расходов по статье",null,null,null,null,null,null,null,null,null,{"$f":"List02_costs_OPS","v":0}]
[null,null,null,"0"]
[null,null,null,null,"Добавить поставщика"]
[]
[null,null,null,"*","Раскрывается не позднее 30 дней со дня сдачи годового бухгалтерского баланса в налоговые органы."]

{"sheet":"Потр. характеристики","index":7,"n_rows":18,"n_cols":7,"rows_kept":18,"cut":false,"hidden":false,"merged":[[4,3,4,6],[5,3,5,6],[16,4,16,6]]}
[]
[]
[]
[]
[null,null,null,"Информация об основных потребительских характеристиках регулируемых товаров и услуг *"]
[null,null,null,{"$f":"IF(org=0,\"Не определено\",org)","v":"ООО \"ЭНЕРГЕТИК\" (котельная \"Машук\" в г. Пятигорске)"}]
[]
[null,null,null,"№ п/п","Информация, подлежащая раскрытию","Значение","Ссылки на документы"]
[null,null,null,"1","2","3","4"]
[null,null,null,1,"Количество аварий на тепловых сетях (единиц на км) **",0]
[null,null,null,"2","Количество аварий на источниках тепловой энергии (единиц на источник)**",0]
[null,null,null,"3","Показатели надежности и качества, установленные в соответствии с законодательством РФ",4]
[null,null,null,"4","Доля числа исполненных в срок договоров о подключении (технологическом присоединении), %",100]
[null,null,null,"5","Средняя продолжительность рассмотрения заявок на подключение (технологическое присоединение), дней",0]
[null,null,null,"6","Комментарии","-"]
[]
[null,null,null,"*","Раскрывается не позднее 30 дней со дня сдачи годового бухгалтерского баланса в налоговые органы."]
[null,null,null,"**","Учитывать любое нарушение системы."]

{"sheet":"Инвестиции","index":8,"n_rows":89,"n_cols":10,"rows_kept":89,"cut":false,"hidden":true,"merged":[[4,4,4,7],[5,4,5,7],[76,0,80,0],[81,0,85,0],[18,0,20,0],[71,0,73,0]]}
[]
[]
[]
[]
[null,null,null,null,"Информация об инвестиционных программах *"]
[null,null,null,null,{"$f":"IF(org=0,\"Не определено\",org)","v":"ООО \"ЭНЕРГЕТИК\" (котельная \"Машук\" в г. Пятигорске)"}]
[]
[]
[null,null,null,null,"№ п/п","Наименование показателя","Единица измерения","Значение",{"$f":"\"Мероприятие \" & I10-4","v":"Мероприятие 0"},"Добавить мероприятие"]
[null,null,null,null,"1","2","3","4","4"]
[null,null,null,null,1,"Наименование инвестиционной программы (мероприятия)","x"]
[null,null,null,null,2,"Дата утверждения инвестиционной программы","x","","x"]
[null,null,null,null,"3","Цели инвестиционной программы","x",null,"x"]
[null,null,null,null,"4","Наименование органа исполнительной власти субъекта РФ, утвердившего инвестиционную программу","x",null,"x"]
[null,null,null,null,"5","Наименование органа местного самоуправления, согласовавшего инвестиционную программу","x",null,"x"]
[null,null,null,null,"6","Срок начала реализации инвестиционной программы (мероприятия)","x",""]
[null,null,null,null,"7","Срок окончания реализации инвестиционной программы (мероприятия)","x"]
[null,null,null,null,"8","Потребности в финансовых средствах, необходимых для реализации инвестиционной программы на год, в том числе по источникам финансирования","тыс руб",{"$f":"SUM(I18:J18)","v":0},{"$f":"SUMIF(List06_flag_year,\"y\",I19:I22)","v":0}]
["8.0",null,null,null,{"$f":"A19","v":"8.0"},null,"тыс руб",{"$f":"SUM(H20:H21)","v":0},{"$f":"SUM(I20:I21)","v":0},"y"]
[null,1,null,null,{"$f":"A19&\".\"&B20","v":"8.0.1"},null,"тыс руб"]
[null,null,null,null,null,"Добавить источники"]
[null,null,null,null,null,"Добавить год"]
[null,null,null,null,"9","Целевые показатели инвестиционной программы",null,"x","x"]
[null,null,null,null,"9.1","Срок окупаемости","лет","x","x"]
[null,null,null,null,"9.1.1","Факт","лет"]
[null,null,null,null,"9.1.2","План","лет"]
[null,null,null,null,"9.2","Перебои в снабжении потребителей","часов на потребителя","x","x"]
[null,null,null,null,"9.2.1","Факт","часов на потребителя"]
[null,null,null,null,"9.2.2","План","часов на потребителя"]
[null,null,null,null,"9.3","Продолжительность (бесперебойность) поставки товаров и услуг","час/день","x","x"]
[null,null,null,null,"9.3.1","Факт","час/день"]
[null,null,null,null,"9.3.2","План","час/день"]
[null,null,null,null,"9.4","Уровень потерь и неучтенного потребления","%","x","x"]
[null,null,null,null,"9.4.1","Факт","%"]
[null,null,null,null,"9.4.2","План","%"]
[null,null,null,null,"9.5","Коэффициент потерь","Гкал/км","x","x"]
[null,null,null,null,"9.5.1","Факт","Гкал/км"]
[null,null,null,null,"9.5.2","План","Гкал/км"]
[null,null,null,null,"9.6","Износ систем коммунальной инфраструктуры","%","x","x"]
[null,null,null,null,"9.6.1","Факт","%"]
[null,null,null,null,"9.6.2","План","%"]
[null,null,null,null,"9.7","Износ оборудования производства (котлы)","%","x","x"]
[null,null,null,null,"9.7.1","Факт","%"]
[null,null,null,null,"9.7.2","План","%"]
[null,null,null,null,"9.8","Износ оборудования передачи тепловой энергии (сети)","%","x","x"]
[null,null,null,null,"9.8.1","Факт","%"]
[null,null,null,null,"9.8.2","План","%"]
[null,null,null,null,"9.9","Удельный вес сетей, нуждающихся в замене","%","x","x"]
[null,null,null,null,"9.9.1","Факт","%"]
[null,null,null,null,"9.9.2","План","%"]
[null,null,null,null,"9.10","Обеспеченность потребления товаров и услуг приборами учета","%","x","x"]
[null,null,null,null,"9.10.1","Факт","%"]
[null,null,null,null,"9.10.2","План","%"]
[null,null,null,null,"9.11","Расход топлива на 1 Гкал","т усл.топл/Гкал","x","x"]
[null,null,null,null,"9.11.1","Факт","т усл.топл/Гкал"]
[null,null,null,null,"9.11.2","План","т усл.топл/Гкал"]
[null,null,null,null,"9.12","Расход электроэнергии на выработку 1 Гкал","кВт.ч/Гкал","x","x"]
[null,null,null,null,"9.12.1","Факт","кВт.ч/Гкал"]
[null,null,null,null,"9.12.2","План","кВт.ч/Гкал"]
[null,null,null,null,"9.13","Расход электроэнергии на передачу 1 Гкал","кВт.ч/Гкал","x","x"]
[null,null,null,null,"9.13.1","Факт","кВт.ч/Гкал"]
[null,null,null,null,"9.13.2","План","кВт.ч/Гкал"]
[null,null,null,null,"9.14","Количество аварий (с учетом котельных)","ед","x","x"]
[null,null,null,null,"9.14.1","Факт","ед"]
[null,null,null,null,"9.14.2","План","ед"]
[null,null,null,null,"9.15","Количество аварий на 1 км тепловых сетей","ед","x","x"]
[null,null,null,null,"9.15.1","Факт","ед"]
[null,null,null,null,"9.15.2","План","ед"]
[null,null,null,null,"9.16","Производительность труда на 1 человека","тыс руб/чел","x","x"]
[null,null,null,null,"9.16.1","Факт","тыс руб/чел"]
[null,null,null,null,"9.16.2","План","тыс руб/чел"]
["9.16",null,null,null,{"$f":"A72","v":"9.16"},null,null,"x","x"]
[null,null,null,null,{"$f":"A72&\".1\"","v":"9.16.1"},"Факт",{"$f":"IF(G72=\"\",\"x\",G72)","v":"x"}]
[null,null,null,null,{"$f":"A72&\".2\"","v":"9.16.2"},"План",{"$f":"IF(G72=\"\",\"x\",G72)","v":"x"}]
[null,null,null,null,null,"Добавить показатель"]
[null,null,null,null,"10","Использование инвестиционных средств за отчетный год","тыс руб","x","x"]
["10.0",null,null,null,{"$f":"A77","v":"10.0"},"Всего, в том числе по источникам финансирования:","тыс руб",{"$f":"SUM(I77:J77)","v":0},{"$f":"SUM(I78:I81)","v":0}]
[null,null,null,null,{"$f":"A77&\".1\"","v":"10.0.1"},"I квартал","тыс руб",{"$f":"SUM(I78:J78)","v":0},{"$f":"SUMIF($F$82:$F$87,$F78,I$82:I$87)","v":0}]
[null,null,null,null,{"$f":"A77&\".2\"","v":"10.0.2"},"II квартал","тыс руб",{"$f":"SUM(I79:J79)","v":0},{"$f":"SUMIF($F$82:$F$87,$F79,I$82:I$87)","v":0}]
[null,null,null,null,{"$f":"A77&\".3\"","v":"10.0.3"},"III квартал","тыс руб",{"$f":"SUM(I80:J80)","v":0},{"$f":"SUMIF($F$82:$F$87,$F80,I$82:I$87)","v":0}]
[null,null,null,null,{"$f":"A77&\".4\"","v":"10.0.4"},"IV квартал","тыс руб",{"$f":"SUM(I81:J81)","v":0},{"$f":"SUMIF($F$82:$F$87,$F81,I$82:I$87)","v":0}]
["10.0",null,null,null,{"$f":"A82","v":"10.0"},null,"тыс руб",{"$f":"SUM(H83:H86)","v":0},{"$f":"SUM(I83:I86)","v":0}]
[null,null,null,null,{"$f":"A82&\".1\"","v":"10.0.1"},"I квартал","тыс руб"]
[null,null,null,null,{"$f":"A82&\".2\"","v":"10.0.2"},"II квартал","тыс руб"]
[null,null,null,null,{"$f":"A82&\".3\"","v":"10.0.3"},"III квартал","тыс руб"]
[null,null,null,null,{"$f":"A82&\".4\"","v":"10.0.4"},"IV квартал","тыс руб"]
[null,null,null,null,null,"Добавить источники"]
[]
[null,null,null,null,"*","Раскрывается не позднее 30 дней со дня сдачи годового бухгалтерского баланса в налоговые органы."]

{"sheet":"Инвестиции исправления","index":9,"n_rows":13,"n_cols":6,"rows_kept":13,"cut":false,"hidden":true,"merged":[[4,3,4,5],[5,3,5,5],[12,4,12,5]]}
[]
[]
[]
[]
[null,null,null,"Внесение изменений в инвестиционную программу *"]
[null,null,null,{"$f":"IF(org=0,\"Не определено\",org)","v":"ООО \"ЭНЕРГЕТИК\" (котельная \"Машук\" в г. Пятигорске)"}]
[]
[null,null,null,"№ п/п","Дата внесения изменений","Внесенные изменения"]
[null,null,null,"1","2","3"]
[null,null,null,"0"]
[null,null,null,null,"Добавить строку"]
[]
[null,null,null,"*","Раскрывается регулируемой организацией в течение 10 календарных дней со дня принятия органом исполнительной власти субъекта Российской Федерации решения о внесении изменений в инвестиционную программу"]

{"sheet":"Ссылки на публикации","index":10,"n_rows":18,"n_cols":11,"rows_kept":18,"cut":false,"hidden":true,"merged":[[12,0,13,0],[12,4,12,10],[4,3,4,10],[5,3,5,10],[10,0,11,0],[10,4,10,10]]}
[]
[]
[]
[]
[null,null,null,"Ссылки на публикации"]
[null,null,null,{"$f":"IF(org=0,\"Не определено\",org)","v":"ООО \"ЭНЕРГЕТИК\" (котельная \"Машук\" в г. Пятигорске)"}]
[]
[]
[null,null,null,"№ п/п","Содержание","Наименование источника публикации","Дата размещения информации","Номер печатного издания","Дата печатного издания","Ссылка на PDF копии издания","Адрес страницы официального сайта организации в сети интернет, на которой размещена раскрываемая информация"]
[null,null,null,"1","2","3","4","5","6","7","8"]
["1",null,null,{"$f":"A11","v":"1"},"Информация об основных показателях финансово-хозяйственной деятельности регулируемой организации, включая структуру основных производственных затрат (в части регулируемой деятельности) (п.19 Постановления Правительства Российской Федерации от 05 июля 2013 г. N 570 \"О стандартах раскрытия информации теплоснабжающими, теплосетевыми организациями и органами регулирования\")"]
[null,null,null,{"$f":"A11&\".1\"","v":"1.1"},"Сайт организации в сети Интернет",null,null,"x","x","x"]
["2",null,null,{"$f":"A13","v":"2"},"Информация об основных потребительских характеристиках регулируемых товаров и услуг, оказываемых регулируемой организацией (п.20  Постановления Правительства Российской Федерации от 05 июля 2013 г. N 570 \"О стандартах раскрытия информации теплоснабжающими, теплосетевыми организациями и органами регулирования\")"]
[null,null,null,{"$f":"A13&\".1\"","v":"2.1"},"Сайт организации в сети Интернет",null,null,"x","x","x"]
[null,null,null,{"$f":"A13&\".2\"","v":"2.2"},"Печатное издание",null,null,null,null,null,"x"]
[]
[]
[null,null,null,null,"Добавить"]

{"sheet":"Комментарии","index":11,"n_rows":13,"n_cols":5,"rows_kept":13,"cut":false,"hidden":false,"merged":[[6,3,6,4],[7,3,7,4]]}
[]
[]
[]
[]
[]
[]
[null,null,null,"Комментарии"]
[null,null,null,{"$f":"IF(org=0,\"Не определено\",org)","v":"ООО \"ЭНЕРГЕТИК\" (котельная \"Машук\" в г. Пятигорске)"}]
[]
[null,null,null,"№ п/п","Комментарий"]
[null,null,null,"1","2"]
[null,null,null,0]
[null,null,null,null,"Добавить"]

{"sheet":"Проверка","index":12,"n_rows":5,"n_cols":5,"rows_kept":5,"cut":false,"hidden":false,"merged":[[1,1,1,4]]}
[]
[null,"Результат проверки"]
[]
[null,"Ссылка1","Ссылка2","Причина","Статус"]
[null,"Потр. характеристики!G12",null,"Не указано значение!","Предупреждение"]

{"sheet":"AllSheetsInThisWorkbook","index":13,"n_rows":30,"n_cols":2,"rows_kept":30,"cut":false,"hidden":true,"merged":[]}
["Расчетные листы","Скрытые листы"]
["Инструкция","AllSheetsInThisWorkbook"]
["Лог обновления","TEHSHEET"]
["Титульный","et_union_hor"]
["Список МО","et_union_vert"]
["Показатели (факт)","modInfo"]
["Показатели (2)","modRegion"]
["Потр. характеристики","modReestr"]
["Инвестиции","modfrmSelectData"]
["Инвестиции исправления","modfrmReestr"]
["Ссылки на публикации","modUpdTemplMain"]
["Комментарии","REESTR_ORG"]
["Проверка","modClassifierValidate"]
[null,"modProv"]
[null,"modHyp"]
[null,"modList00"]
[null,"modList01"]
[null,"modList02"]
[null,"modList03"]
[null,"modList04"]
[null,"modList05"]
[null,"modList06"]
[null,"modList07"]
[null,"modfrmDateChoose"]
[null,"modComm"]
[null,"modThisWorkbook"]
[null,"REESTR_MO"]
[null,"modfrmReestrMR"]
[null,"modfrmCheckUpdates"]
[null,"CopyList"]

{"sheet":"TEHSHEET","index":14,"n_rows":85,"n_cols":20,"rows_kept":85,"cut":false,"hidden":true,"merged":[[0,12,0,13],[0,16,0,17]]}
["REGION","Список с видами деятельности",null,"year_list","logical","Месяц\n(MONTH)","Квартал\n(QUARTER)","Месяц\n(kind_of_publication)","Режим налогообложения\n/kind_of_NDS/","Вид деятельности, на которую установлен тариф /kind_of_activity/","Вид услуги, на которую установлен тариф /kind_of_service_WARM/","Номер СЦХВ(СЦВО)\n/SKI_number/","Виды топлива\n/kind_of_fuels/",null,"цель инвестиционной программы /kind_of_purchase_method/","Источники финансирования\n/source_of_funding/","цель инвестиционной программы /objective_of_IPR/",null,null,"Рабочие диапазоны"]
["Алтайский край","kind_of_activity_01",null,2013,"да","январь","I квартал","На официальном сайте организации","общий","kind_of_activity_01","Производство","1","газ природный по регулируемой цене","тыс м3","торги/аукционы","кредиты банков","автоматизация (с уменьшением штата)",false,null,true]
["Амурская область",null,null,2014,"нет","февраль","II квартал","На сайте регулирующего органа","общий с учетом освобождения от уплаты НДС","Комбинированная выработка","Передача","2","газ природный по нерегулируемой цене","тыс м3","прямые договора без торгов","кредиты иностранных банков","уменьшение удельных затрат (повышение КПД)",false]
["Архангельская область",null,null,2015,null,"март","III квартал",null,"специальный (упрощенная система налогообложения, система налогообложения для сельскохозяйственных товаропроизводителей)","Некомбинированная выработка","Сбыт","3","газ сжиженный","кг","прочее","заемные ср-ва др. организаций","уменьшение издержек на производство",false]
["Астраханская область",null,null,2016,"logical_two","апрель","IV квартал",null,null,"Нет производства т/э",null,"4","газовый конденсат","тонны",null,"федеральный бюджет","снижение аварийности",false]
["Белгородская область",null,null,2017,"есть","май",null,null,"НДС для общего режима налогообложения\n/kind_of_NDS_tariff/","Смешанное производство",null,"5","гшз","тонны",null,"бюджет субъекта РФ","прочее",false]
["Брянская область",null,null,null,"отсутствует","июнь",null,null,"тариф указан с НДС для плательщиков НДС",null,null,"6","мазут","тонны",null,"бюджет муниципального образования"]
["Владимирская область",null,null,null,null,"июль",null,null,"тариф указан без НДС для плательщиков НДС","kind_of_activity_02",null,"7","нефть","тонны",null,"ср-ва внебюджетных фондов"]
["Волгоградская область",null,null,null,null,"август",null,null,null,"Комбинированная выработка",null,"8","дизельное топливо","тонны",null,"прибыль, направляемая на инвестиции"]
["Вологодская область",null,null,null,null,"сентябрь",null,null,"НДС для прочих режимов налогообложения\n/kind_of_NDS_tariff_etc/","Некомбинированная выработка",null,"9","уголь бурый","тонны",null,"амортизация"]
["Воронежская область",null,null,null,null,"октябрь",null,null,"тариф для организаций не являющихся плательщиками НДС","Смешанное производство",null,"10","уголь каменный","тонны",null,"инвестиционная надбавка к тарифу"]
["г.Байконур",null,null,null,null,"ноябрь",null,null,null,"Передача",null,"11","торф","тонны",null,"плата за подключение"]
["г. Москва",null,null,null,null,"декабрь",null,null,null,"Сбыт",null,"12","дрова","м3",null,"прочие средства"]
["г.Санкт-Петербург",null,null,null,null,null,null,null,null,null,null,"13","опил","м3"]
["Еврейская автономная область",null,null,null,null,null,null,null,null,"kind_of_activity_03",null,"14","отходы березовые","м3"]
["Забайкальский край",null,null,null,null,null,null,null,null,"Комбинированная выработка",null,"15","отходы осиновые","м3"]
["Ивановская область",null,null,null,null,null,null,null,null,"Некомбинированная выработка",null,"16","печное топливо","тонны"]
["Иркутская область",null,null,null,null,null,null,null,null,"Смешанное производство",null,"17","пилеты","тонны"]
["Кабардино-Балкарская республика",null,null,null,null,null,null,null,null,"Передача",null,"18","смола","тонны"]
["Калининградская область",null,null,null,null,null,null,null,null,"Сбыт",null,"19","щепа","м3"]
["Калужская область",null,null,null,null,null,null,null,null,"Производство (некомбинированная выработка)+сбыт",null,"20","горючий сланец","тонны"]
["Камчатский край",null,null,null,null,null,null,null,null,"Передача+сбыт",null,null,"керосин","тонны"]
["Карачаево-Черкесская республика",null,null,null,null,null,null,null,null,"Производство (комбинированная выработка)+сбыт",null,null,"кислородно-водородная смесь","тыс м3"]
["Кемеровская область",null,null,null,null,null,null,null,null,"Производство (некомбинированная выработка)+передача",null,null,"электроэнергия (НН)","тыс кВт.ч"]
["Кировская область",null,null,null,null,null,null,null,null,"Производство (комбинированная выработка)+передача",null,null,"электроэнергия (СН1)","тыс кВт.ч"]
["Костромская область",null,null,null,null,null,null,null,null,"Производство (комбинированная выработка)+передача+сбыт",null,null,"электроэнергия (СН2)","тыс кВт.ч"]
["Краснодарский край",null,null,null,null,null,null,null,null,"Производство (некомбинированная выработка)+передача+сбыт",null,null,"электроэнергия (ВН)","тыс кВт.ч"]
["Красноярский край",null,null,null,null,null,null,null,null,"Смешанное производство+сбыт",null,null,"мощность","тыс кВт"]
["Курганская область",null,null,null,null,null,null,null,null,"Смешанное производство+передача",null,null,"прочее"]
["Курская область",null,null,null,null,null,null,null,null,"Смешанное производство+передача+сбыт"]
["Ленинградская область"]
["Липецкая область"]
["Магаданская область"]
["Московская область"]
["Мурманская область"]
["Ненецкий автономный округ"]
["Нижегородская область"]
["Новгородская область"]
["Новосибирская область"]
["Омская область","kind_of_activity_02"]
["Оренбургская область"]
["Орловская область"]
["Пензенская область"]
["Пермский край"]
["Приморский край"]
["Псковская область"]
["Республика Адыгея"]
["Республика Алтай"]
["Республика Башкортостан"]
["Республика Бурятия"]
["Республика Дагестан"]
["Республика Ингушетия"]
["Республика Калмыкия"]
["Республика Карелия"]
["Республика Коми"]
["Республика Марий Эл"]
["Республика Мордовия"]
["Республика Саха (Якутия)"]
["Республика Северная Осетия-Алания"]
["Республика Татарстан"]
["Республика Тыва"]
["Республика Хакасия"]
["Ростовская область"]
["Рязанская область"]
["Самарская область"]
["Саратовская область"]
["Сахалинская область"]
["Свердловская область"]
["Смоленская область"]
["Ставропольский край"]
["Тамбовская область"]
["Тверская область"]
["Томская область"]
["Тульская область"]
["Тюменская область"]
["Удмуртская республика"]
["Ульяновская область","kind_of_activity_02"]
["Хабаровский край"]
["Ханты-Мансийский автономный округ","kind_of_activity_02"]
["Челябинская область"]
["Чеченская республика"]
["Чувашская республика"]
["Чукотский автономный округ"]
["Ямало-Ненецкий автономный округ"]
["Ярославская область"]

{"sheet":"et_union_hor","index":15,"n_rows":61,"n_cols":16,"rows_kept":61,"cut":false,"hidden":true,"merged":[[23,0,24,0],[23,4,23,10],[15,4,15,10],[33,0,37,0],[15,0,17,0],[55,8,56,8],[55,6,56,6],[3,4,4,4],[3,3,4,3],[54,3,57,3],[54,4,57,4],[55,7,56,7]]}
[]
["et_List01","et_List01_1"]
[]
[null,null,null,null,null,1]
[null,null,null,null,null,null,"Добавить МО"]
[]
[]
["et_Comm"]
[]
[]
[]
[]
["et_List03"]
[]
[]
["4",null,null,{"$f":"A16","v":"4"}]
[null,null,null,{"$f":"A16&\".1\"","v":"4.1"},"Сайт организации в сети Интернет",null,null,"x","x","x"]
[null,null,null,{"$f":"A16&\".2\"","v":"4.2"},"Печатное издание",null,"",null,null,null,"x"]
[]
[]
[]
["edit_List03_ipr_pub"]
[]
["3",null,null,{"$f":"A24","v":"3"},"Информация об инвестиционных программах регулируемой организации (п.21 Постановления Правительства Российской Федерации от 05 июля 2013 г. N 570 \"О стандартах раскрытия информации теплоснабжающими, теплосетевыми организациями и органами регулирования\")"]
[null,null,null,{"$f":"A24&\".1\"","v":"3.1"},"Сайт организации в сети Интернет",null,null,"x","x","x"]
[]
[]
["et_List02_1"]
[]
[null,null,null,null,null,"тыс руб"]
[]
["et_List02_2"]
[]
[null,null,null,{"$f":"A34","v":0},null,"x",{"$f":"G35*G36+G37","v":0},"p"]
[null,null,null,{"$f":"A34&\".1\"","v":".1"},"Объем"]
[null,null,null,{"$f":"A34&\".2\"","v":".2"},"Стоимость за единицу объема","тыс руб"]
[null,null,null,{"$f":"A34&\".3\"","v":".3"},"Стоимость доставки","тыс руб"]
[null,null,null,{"$f":"A34&\".4\"","v":".4"},"Способ приобретения","x"]
[]
["et_List02_3"]
[]
[null,null,null,null,null,"Гкал/ч"]
[]
["et_List02_4"]
[]
[null,null,null,null,null,"кг усл. топл/Гкал"]
[]
["et_List02_5"]
[]
[null,null,null,null,null,"тыс руб"]
[]
[]
["et_List04_1","et_List04_2","et_List04_3"]
[]
[null,null,null,"1",null,null,null,"Итого по поставщику",null,null,null,null,null,null,{"$f":"SUM(O56:O58)","v":0},{"$f":"nerr(O55/List02_costs_OPS)*100","v":0}]
[null,null,null,null,null,null,"1",null,null,null,"1"]
[null,null,null,null,null,null,null,null,null,null,null,"Добавить товар/услугу"]
[null,null,null,null,null,null,null,"Добавить способ"]
[]
[]
["et_List07_1"]

{"sheet":"et_union_vert","index":16,"n_rows":0,"n_cols":0,"rows_kept":0,"cut":false,"hidden":true,"merged":[]}

{"sheet":"modInfo","index":17,"n_rows":17,"n_cols":2,"rows_kept":17,"cut":false,"hidden":true,"merged":[]}
[null,"Титульный"]
[null,"Для выбора того или иного источника публикации выполните двойной щелчок по синей ячейке напротив соответствующего источника.\nВНИМАНИЕ! Если Вы снимаете галочку с пункта, то будут скрыты и очищены соответствующие строки на листе \"Ссылки на публикации\"!\n\nОпубликование перечисленных в шаблоне показателей на сайте организации в сети Интернет и в печатных изданиях не обязательно, если данный шаблон предоставлен по системе ЕИАС (региональный сегмент)."]
[null,"Обязательное опубликование на официальном сайте органа исполнительной власти субъекта Российской Федерации в области государственного регулирования цен (тарифов), и (или) на официальном сайте органа местного самоуправления поселения или городского округа в случае их наделения в соответствии с законом субъекта Российской Федерации полномочиями по государственному регулированию цен (тарифов) предусмотрено пунктом 3 (а) постановления Правительства N 570 от 05.07.2013"]
[null,"Задайте период регулирования, выбрав даты начала и окончания очередного периода регулирования из календаря (иконка справа от указанной ячейки), либо введите дату непосредственно в ячейку в формате - 'ДД.ММ.ГГГГ'"]
[null,"Шаблон заполняется раздельно по каждому виду тарифа"]
[null,"В зависимости от указанного вида деятельности будут доступны для заполнения поля 'Производство', 'Передача' и 'Сбыт'"]
[null,"Ссылки на публикации"]
[null,"Вводите адрес сайта, не нарушая цвет ячейки /если копируете гиперссылку из браузера, то выполните двойной щелчок по ячейке и только после этого можете вставить скопированный элемент/"]
[null,"Материалы (документы) необходимо загружать с помощью \"ЕИАС Мониторинг\". Ссылка на инструкцию по загрузке материалов (документов) расположена на листе 'Инструкция' в п.'Методология заполнения'.\n\nВвводите ссылку, не нарушая цвет ячейки /если копируете гиперссылку из браузера, то выполните двойной щелчок по ячейке и только после этого можете вставить скопированный элемент/."]
[null,"Если для какого-либо пункта графы 'Наименование источника (сайта или печатного издания)' информация не раскрывалась, то в соответствующем поле укажите - 'не раскрывалась'"]
[null,"Список МО"]
[null,"В случае, если тариф не дифференцируется по системам теплоснабжения, перечислите все муниципальные районы, в которых организация осуществляет услуги по передаче тепловой энергии"]
[null,"В случае, если тариф не дифференцируется по системам теплоснабжения, перечислите все муниципальные образования, в которых организация осуществляет услуги по передаче тепловой энергии"]
[null,"Признак дифференциации тарифа"]
[null,"В случае, если тариф не дифференцируется по системам теплоснабжения, укажите '1'. Введите значение от 1 до 100, чтобы указать очередной условный порядковый номер системы теплоснабжения"]
[null,"Потр. Характеристики"]
[null,"Документы необходимо загружать с помощью \"ЕИАС Мониторинг\". Ссылка на инструкцию по загрузке документов расположена на листе 'Инструкция' в п.'Методология заполнения'.\n\nВвводите ссылку, не нарушая цвет ячейки /если копируете гиперссылку из браузера, то выполните двойной щелчок по ячейке и только после этого можете вставить скопированный элемент/."]

{"sheet":"modRegion","index":18,"n_rows":0,"n_cols":0,"rows_kept":0,"cut":false,"hidden":true,"merged":[]}

{"sheet":"modReestr","index":19,"n_rows":0,"n_cols":0,"rows_kept":0,"cut":false,"hidden":true,"merged":[]}

{"sheet":"modfrmSelectData","index":20,"n_rows":0,"n_cols":0,"rows_kept":0,"cut":false,"hidden":true,"merged":[]}

{"sheet":"modfrmReestr","index":21,"n_rows":0,"n_cols":0,"rows_kept":0,"cut":false,"hidden":true,"merged":[]}

{"sheet":"modUpdTemplMain","index":22,"n_rows":0,"n_cols":0,"rows_kept":0,"cut":false,"hidden":true,"merged":[]}

{"sheet":"REESTR_ORG","index":23,"n_rows":70,"n_cols":12,"rows_kept":70,"cut":false,"hidden":true,"merged":[]}
["№","NSRF","MR_NAME","OKTMO_MR_NAME","MO_NAME","OKTMO_NAME","RST_ORG_ID","ORG_NAME","INN_NAME","KPP_NAME","VDET_NAME"]
[1,"Ставропольский край","Город Невинномысск","07724000","Город Невинномысск","07724000","26419409","АО \"Невинномысский Азот\"","2631015563","263101001","производство (некомбинированная выработка)+передача+сбыт","WARM"]
[2,"Ставропольский край","","","","","26838066","АО \"РЭУ\"","7714783092","774501001","производство (некомбинированная выработка)+передача+сбыт","WARM"]
[3,"Ставропольский край","Город Невинномысск","07724000","Город Невинномысск","07724000","26417110","АО \"СКЭРК\"","0721009031","263145001","производство (некомбинированная выработка)+сбыт","WARM"]
[4,"Ставропольский край","Город Невинномысск","07724000","Город Невинномысск","07724000","26355198","АО \"Теплосеть\" г. Невинномысск","2631054298","263101001","производство (некомбинированная выработка)+передача+сбыт","WARM"]
[5,"Ставропольский край","Город Ставрополь","07701000","Город Ставрополь","07701000","26355211","АО \"Теплосеть\" г. Ставрополь","2635095930","263501001","производство (некомбинированная выработка)+передача+сбыт","WARM"]
[6,"Ставропольский край","Город-курорт Железноводск","07712000","Город-курорт Железноводск","07712000","28118061","ГБОУ СПО \"Железноводский художественно-строительный техникум\"","2627012954","262701001","производство (некомбинированная выработка)+передача+сбыт","WARM"]
[7,"Ставропольский край","Минераловодский муниципальный район","07639000","Побегайловский сельсовет","07639419","26355222","ГБУЗ СК \"ККБМР\"","2630019702","263001001","производство (некомбинированная выработка)+передача+сбыт","WARM"]
[8,"Ставропольский край","Город-курорт Пятигорск","07727000","Город-курорт Пятигорск","07727000","26355214","ГКУЗ \"Ставропольский краевой госпиталь для ветеранов войн\"","2632055946","263201001","производство (некомбинированная выработка)+передача+сбыт","WARM"]
[9,"Ставропольский край","Город Георгиевск","07707000","Город Георгиевск","07707000","26355185","ГМУП \"Теплосеть\"","2625002189","262501001","производство (некомбинированная выработка)+передача+сбыт","WARM"]
[10,"Ставропольский край","Город Ставрополь","07701000","Город Ставрополь","07701000","26355225","ГУП СК \"Крайтеплоэнерго\"","2635060510","263501001","производство (некомбинированная выработка)+передача+сбыт","WARM"]
[11,"Ставропольский край","Кировский муниципальный район","07625000","Город Новопавловск","07625101","26355176","ГУП СК ЖКХ Кировского района","2609014934","260901001","производство (некомбинированная выработка)+передача+сбыт","WARM"]
[12,"Ставропольский край","Город Ставрополь","07701000","Город Ставрополь","07701000","26355213","ЗАО \"Гермес-52\"","2633002369","263501001","производство (некомбинированная выработка)+передача+сбыт","WARM"]
[13,"Ставропольский край","Город Ставрополь","07701000","Город Ставрополь","07701000","26355210","ЗАО \"Пассаж\"","2633001132","263601001","производство (некомбинированная выработка)+сбыт","WARM"]
[14,"Ставропольский край","Город Лермонтов","07718000","Город Лермонтов","07718000","26360929","ЗАО \"ЮЭК\" филиал в г. Лермонтов Ставропольского края","7704262319","262902001","Передача+Сбыт","WARM"]
[15,"Ставропольский край","Город Лермонтов","07718000","Город Лермонтов","07718000","26360929","ЗАО \"ЮЭК\" филиал в г. Лермонтов Ставропольского края","7704262319","262902001","производство комбинированная выработка","WARM"]
[16,"Ставропольский край","Город Ставрополь","07701000","Город Ставрополь","07701000","29649010","ИП Кашурина Дарья Андреевна","263408566507","отсутствует","производство (некомбинированная выработка)+передача","WARM"]
[17,"Ставропольский край","Город-курорт Пятигорск","07727000","Город-курорт Пятигорск","07727000","26355205","ЛПУП  Санаторий \"РОДНИК\"","2632053836","263201001","производство (некомбинированная выработка)+передача+сбыт","WARM"]
[18,"Ставропольский край","Город-курорт Пятигорск","07727000","Город-курорт Пятигорск","07727000","26355207","ЛПУП \"Пятигорская бальнеогрязелечебница\"","2632054854","263201001","производство (некомбинированная выработка)+передача+сбыт","WARM"]
[19,"Ставропольский край","Петровский муниципальный район","07646000","Село Благодатное","07646402","26414029","МКП \"Надежда\" МО с. Благодатное Петровского района Ставропольского края","2617013148","261701001","производство (некомбинированная выработка)+сбыт","WARM"]
[20,"Ставропольский край","Апанасенковский муниципальный район","07605000","Село Дивное","07605419","26355169","МУП \"ЖКХ\" Апанасенковского муниципального района Ставропольского края","2602004366","260201001","производство (некомбинированная выработка)+передача+сбыт","WARM"]
[21,"Ставропольский край","Грачевский муниципальный район","07617000","Грачевский сельсовет","07617404","26355172","МУП \"КХ\" Грачёвского муниципального района Ставропольского края","2606000122","260601001","производство (некомбинированная выработка)+передача+сбыт","WARM"]
[22,"Ставропольский край","Степновский муниципальный район","07652000","Степновский сельсовет","07652426","26355182","МУП \"КХ\" Степновского муниципального района Ставропольского края","2620000580","262001001","производство (некомбинированная выработка)+передача+сбыт","WARM"]
[23,"Ставропольский край","Город Лермонтов","07718000","Город Лермонтов","07718000","26383213","МУП \"Лермонтовгоргаз\"","2629005046","262901001","производство (некомбинированная выработка)+сбыт","WARM"]
[24,"Ставропольский край","Город-курорт Железноводск","07712000","Город-курорт Железноводск","07712000","26355192","МУП \"Теплосеть\" г. Железноводск","2627007954","262701001","производство (некомбинированная выработка)+передача+сбыт","WARM"]
[25,"Ставропольский край","Александровский муниципальный район","07602000","Александровский сельсовет","07602402","26526815","МУП ЖКХ Александровского района","2601004596","260101001","производство (некомбинированная выработка)+передача+сбыт","WARM"]
[26,"Ставропольский край","Курский муниципальный район","07633000","Курский сельсовет","07633407","26355178","МУП КМР СК « ЖКХ Курского района»","2612016970","261201001","производство (некомбинированная выработка)+передача+сбыт","WARM"]
[27,"Ставропольский край","Арзгирский муниципальный район","07607000","Арзгирский сельсовет","07607402","26355171","МУП КХ Арзгирского района","2604000247","260401001","производство (некомбинированная выработка)+передача+сбыт","WARM"]
[28,"Ставропольский край","Туркменский муниципальный район","07656000","Летнеставочный сельсовет","07656419","26355183","МУП КХ Туркменского района","2622003515","262201001","производство (некомбинированная выработка)+передача+сбыт","WARM"]
[29,"Ставропольский край","Кочубеевский муниципальный район","07628000","Село Кочубеевское","07628422","26355177","МУП СК ЖКХ Кочубеевского района","2610012931","261001001","производство (некомбинированная выработка)+передача+сбыт","WARM"]
[30,"Ставропольский край","Город-курорт Ессентуки","07710000","Город-курорт Ессентуки","07710000","26355189","ОАО \"Ессентукская Теплосеть\"","2626020720","262601001","производство (некомбинированная выработка)+передача+сбыт","WARM"]
[31,"Ставропольский край","Город Невинномысск","07724000","Город Невинномысск","07724000","26355197","ОАО \"Квант-Энергия\"","2631002155","263101001","производство (некомбинированная выработка)+сбыт","WARM"]
[32,"Ставропольский край","Минераловодский муниципальный район","07639000","Город Минеральные Воды","07639101","26800337","ОАО \"Международный аэропорт Минеральные Воды\"","2630800970","263001001","производство (некомбинированная выработка)+передача+сбыт","WARM"]
[33,"Ставропольский край","Город-курорт Пятигорск","07727000","Город-курорт Пятигорск","07727000","26850785","ОАО \"ПТЭК\"","2632800936","263201001","производство (некомбинированная выработка)+передача+сбыт","WARM"]
[34,"Ставропольский край","","","","","27507656","ОАО \"РЭУ\" Филиал Владикавказский","7714783092","151543001","производство (некомбинированная выработка)+передача+сбыт","WARM"]
[35,"Ставропольский край","Изобильненский муниципальный район","07620000","Город Изобильный","07620101","26355174","ОАО \"Ставропольсахар\"","2607012219","260701001","производство комбинированная выработка","WARM"]
[36,"Ставропольский край","Город-курорт Кисловодск","07715000","Город-курорт Кисловодск","07715000","26355194","ОАО \"Теплосеть\" г. Кисловодск","2628008414","262801001","производство (некомбинированная выработка)+передача+сбыт","WARM"]
[37,"Ставропольский край","Город Георгиевск","07707000","Город Георгиевск","07707000","26355187","ОАО \"Хлебокомбинат \"Георгиевский\"","2625012571","262501001","производство (некомбинированная выработка)+передача+сбыт","WARM"]
[38,"Ставропольский край","Андроповский муниципальный район","07632000","Солуно-Дмитриевский сельсовет","07632416","26355170","ООО \"ККЭБСЕ\" филиал в селе Солуно-Дмитриевское","7701215046","525350001","производство (некомбинированная выработка)+передача+сбыт","WARM"]
[39,"Ставропольский край","Город-курорт Кисловодск","07715000","Город-курорт Кисловодск","07715000","27567409","ООО \"ЛУКОЙЛ-Ставропольэнерго\"","2624033219","262845001","производство (некомбинированная выработка)+передача+сбыт","WARM"]
[40,"Ставропольский край","Город-курорт Кисловодск","07715000","Город-курорт Кисловодск","07715000","27567409","ООО \"ЛУКОЙЛ-Ставропольэнерго\"","2624033219","262845001","производство комбинированная выработка","WARM"]
[41,"Ставропольский край","Город-курорт Железноводск","07712000","Город-курорт Железноводск","07712000","26355193","ООО \"Объединение котельных курорта\" г. Железноводск","2627016807","262701001","производство (некомбинированная выработка)+передача+сбыт","WARM"]
[42,"Ставропольский край","Город-курорт Ессентуки","07710000","Город-курорт Ессентуки","07710000","26355190","ООО \"Объединение котельных курорта\" г.Ессентуки","2626027362","262601001","производство (некомбинированная выработка)+передача+сбыт","WARM"]
[43,"Ставропольский край","Город-курорт Пятигорск","07727000","Город-курорт Пятигорск","07727000","26355209","ООО \"Пятигорсктеплосервис\"","2632062277","263201001","производство (некомбинированная выработка)+передача+сбыт","WARM"]
[44,"Ставропольский край","Город Ставрополь","07701000","Город Ставрополь","07701000","26891086","ООО \"Ритм-Б\"","2636032690","263601001","производство (некомбинированная выработка)+передача+сбыт","WARM"]
[45,"Ставропольский край","Изобильненский муниципальный район","07620000","Поселок Солнечнодольск","07620155","26417104","ООО \"СКС\"","2607019831","260701001","Передача+Сбыт","WARM"]
[46,"Ставропольский край","Изобильненский муниципальный район","07620000","Поселок Солнечнодольск","07620155","28952051","ООО \"СКС\"","2607000284","260701001","Передача+Сбыт","WARM"]
[47,"Ставропольский край","Город-курорт Пятигорск","07727000","Город-курорт Пятигорск","07727000","26355203","ООО \"Санаторий \"Тарханы\"","2632012646","263201001","производство (некомбинированная выработка)+передача+сбыт","WARM"]
[48,"Ставропольский край","Александровский муниципальный район","07602000","Александровский сельсовет","07602402","26893305","ООО \"Сфера\"","2601009756","260101001","производство (некомбинированная выработка)+передача+сбыт","WARM"]
[49,"Ставропольский край","Город-курорт Пятигорск","07727000","Город-курорт Пятигорск","07727000","26355208","ООО \"ТЕХНО-Сервис\"","2632059130","263201001","производство (некомбинированная выработка)+передача+сбыт","WARM"]
[50,"Ставропольский край","Георгиевский муниципальный район","07615000","Незлобненский сельсовет","07615413","28535957","ООО \"Теплосервис-КМВ\"","2625800847","262501001","производство (некомбинированная выработка)","WARM"]
[51,"Ставропольский край","Город Невинномысск","07724000","Город Невинномысск","07724000","28014322","ООО \"Теплоцентр-НШК\"","2631803194","263101001","производство (некомбинированная выработка)+передача","WARM"]
[52,"Ставропольский край","Александровский муниципальный район","07602000","Александровский сельсовет","07602402","26891277","ООО \"Теплый дом\"","2601009690","260101001","производство (некомбинированная выработка)+передача+сбыт","WARM"]
[53,"Ставропольский край","Город-курорт Пятигорск","07727000","Город-курорт Пятигорск","07727000","27882380","ООО \"ЭНЕРГЕТИК\" (котельная \"Машук\" в г. Пятигорске)","2618800660","261801001","производство (некомбинированная выработка)+передача+сбыт","WARM"]
[54,"Ставропольский край","Изобильненский муниципальный район","07620000","Город Изобильный","07620101","26355224","ООО «Газпром трансгаз Ставрополь»","2636032629","263601001","производство (некомбинированная выработка)+передача+сбыт","WARM"]
[55,"Ставропольский край","Изобильненский муниципальный район","07620000","Город Изобильный","07620101","26355173","ПАО \"Завод Атлант\"","2607000333","260701001","производство (некомбинированная выработка)+передача+сбыт","WARM"]
[56,"Ставропольский край","Изобильненский муниципальный район","07620000","Поселок Солнечнодольск","07620155","27051140","ПАО \"ОГК-2\"","2607018122","260701001","Передача+Сбыт","WARM"]
[57,"Ставропольский край","Изобильненский муниципальный район","07620000","Поселок Солнечнодольск","07620155","27051140","ПАО \"ОГК-2\"","2607018122","260701001","производство комбинированная выработка","WARM"]
[58,"Ставропольский край","Минераловодский муниципальный район","07639000","Город Минеральные Воды","07639101","26897146","ПАО \"Ставропласт\"","2630000067","263001001","производство (некомбинированная выработка)+сбыт","WARM"]
[59,"Ставропольский край","Город Ставрополь","07701000","Город Ставрополь","07701000","26355219","ПАО \"Ставропольский радиозавод \"Сигнал\"","2635000092","263501001","производство (некомбинированная выработка)+передача+сбыт","WARM"]
[60,"Ставропольский край","","","","","26816056","Северо-Кавказская дирекция по тепловодоснабжению структурное подразделение Центральной дирекции по тепловодоснабжению - филиала ОАО \"РЖД\"","7708503727","616745019","производство (некомбинированная выработка)+передача+сбыт","WARM"]
[61,"Ставропольский край","Город Ставрополь","07701000","Город Ставрополь","07701000","26322297","Северо-Кавказский филиал ООО \"Газпром энерго\"","7736186950","263602001","производство (некомбинированная выработка)+передача+сбыт","WARM"]
[62,"Ставропольский край","Город Ставрополь","07701000","Город Ставрополь","07701000","28980134","УФСБ России по Ставропольскому краю","2634025295","263401001","","WARM"]
[63,"Ставропольский край","Город Ставрополь","07701000","Город Ставрополь","07701000","26759933","ФГБНУ ВНИИОК","2634013130","263401001","производство (некомбинированная выработка)+передача+сбыт","WARM"]
[64,"Ставропольский край","Город-курорт Кисловодск","07715000","Город-курорт Кисловодск","07715000","26355217","ФГКУ \"МСЧ УФСБ России по Ставропольскому краю\" (филиал в г. Кисловодске)","2633005786","263301001","производство (некомбинированная выработка)+передача+сбыт","WARM"]
[65,"Ставропольский край","Город Невинномысск","07724000","Город Невинномысск","07724000","26416944","Филиал \"Невинномысская ГРЭС\"  ПАО \"Энел Россия\"","6671156423","263102001","производство комбинированная выработка","WARM"]
[66,"Ставропольский край","","","","","27357611","Филиал ОАО \"РЭУ\" \"Ростовский\"","7714783092","616543001","производство (некомбинированная выработка)+передача+сбыт","WARM"]
[67,"Ставропольский край","Изобильненский муниципальный район","07620000","Поселок Солнечнодольск","07620155","26416974","Филиал ПАО \"ОГК-2\"-Ставропольская ГРЭС","2607018122","260702001","производство комбинированная выработка","WARM"]
[68,"Ставропольский край","Изобильненский муниципальный район","07620000","Поселок Солнечнодольск","07620155","26416974","Филиал ПАО \"ОГК-2\"-Ставропольская ГРЭС","2607018122","260702001","Передача+Сбыт","WARM"]
[69,"Ставропольский край","Город Ставрополь","07701000","Город Ставрополь","07701000","27727710","Филиал ФГУП \"НПО \"Микроген\" Минздрава России \"Аллерген\" в г.Ставрополь","7722292838","263402001","производство (некомбинированная выработка)+передача+сбыт","WARM"]

{"sheet":"modClassifierValidate","index":24,"n_rows":0,"n_cols":0,"rows_kept":0,"cut":false,"hidden":true,"merged":[]}

{"sheet":"modProv","index":25,"n_rows":0,"n_cols":0,"rows_kept":0,"cut":false,"hidden":true,"merged":[]}

{"sheet":"modHyp","index":26,"n_rows":0,"n_cols":0,"rows_kept":0,"cut":false,"hidden":true,"merged":[]}

{"sheet":"modList00","index":27,"n_rows":0,"n_cols":0,"rows_kept":0,"cut":false,"hidden":true,"merged":[]}

{"sheet":"modList02","index":28,"n_rows":0,"n_cols":0,"rows_kept":0,"cut":false,"hidden":true,"merged":[]}

{"sheet":"modList03","index":29,"n_rows":0,"n_cols":0,"rows_kept":0,"cut":false,"hidden":true,"merged":[]}

{"sheet":"modList04","index":30,"n_rows":0,"n_cols":0,"rows_kept":0,"cut":false,"hidden":true,"merged":[]}

{"sheet":"modList05","index":31,"n_rows":0,"n_cols":0,"rows_kept":0,"cut":false,"hidden":true,"merged":[]}

{"sheet":"modList06","index":32,"n_rows":0,"n_cols":0,"rows_kept":0,"cut":false,"hidden":true,"merged":[]}

{"sheet":"modList07","index":33,"n_rows":0,"n_cols":0,"rows_kept":0,"cut":false,"hidden":true,"merged":[]}

{"sheet":"modfrmDateChoose","index":34,"n_rows":0,"n_cols":0,"rows_kept":0,"cut":false,"hidden":true,"merged":[]}

{"sheet":"modComm","index":35,"n_rows":0,"n_cols":0,"rows_kept":0,"cut":false,"hidden":true,"merged":[]}

{"sheet":"modThisWorkbook","index":36,"n_rows":0,"n_cols":0,"rows_kept":0,"cut":false,"hidden":true,"merged":[]}

{"sheet":"REESTR_MO","index":37,"n_rows":331,"n_cols":4,"rows_kept":331,"cut":false,"hidden":true,"merged":[]}
["№","МР","МО","МО_ОКТМО"]
[1,"Александровский муниципальный район","Александровский муниципальный район","07602000"]
[2,"Александровский муниципальный район","Александровский сельсовет","07602402"]
[3,"Александровский муниципальный район","Калиновский сельсовет","07602407"]
[4,"Александровский муниципальный район","Круглолесский сельсовет","07602410"]
[5,"Александровский муниципальный район","Новокавказский сельсовет","07602413"]
[6,"Александровский муниципальный район","Саблинский сельсовет","07602416"]
[7,"Александровский муниципальный район","Село Грушевское","07602404"]
[8,"Александровский муниципальный район","Село Северное","07602419"]
[9,"Александровский муниципальный район","Средненский сельсовет","07602422"]
[10,"Андроповский муниципальный район","Андроповский муниципальный район","07632000"]
[11,"Андроповский муниципальный район","Водораздельный сельсовет","07632402"]
[12,"Андроповский муниципальный район","Казинский сельсовет","07632406"]
[13,"Андроповский муниципальный район","Красноярский сельсовет","07632407"]
[14,"Андроповский муниципальный район","Курсавский сельсовет","07632410"]
[15,"Андроповский муниципальный район","Куршавский сельсовет","07632412"]
[16,"Андроповский муниципальный район","Новоянкульский сельсовет","07632414"]
[17,"Андроповский муниципальный район","Село Крымгиреевское","07632408"]
[18,"Андроповский муниципальный район","Село Султан","07632419"]
[19,"Андроповский муниципальный район","Солуно-Дмитриевский сельсовет","07632416"]
[20,"Андроповский муниципальный район","Станица Воровсколесская","07632404"]
[21,"Андроповский муниципальный район","Янкульский сельсовет","07632422"]
[22,"Апанасенковский муниципальный район","Айгурский сельсовет","07605402"]
[23,"Апанасенковский муниципальный район","Апанасенковский муниципальный район","07605000"]
[24,"Апанасенковский муниципальный район","Дербетовский сельсовет","07605416"]
[25,"Апанасенковский муниципальный район","Село Апанасенковское","07605404"]
[26,"Апанасенковский муниципальный район","Село Белые Копани","07605407"]
[27,"Апанасенковский муниципальный район","Село Воздвиженское","07605410"]
[28,"Апанасенковский муниципальный район","Село Вознесеновское","07605413"]
[29,"Апанасенковский муниципальный район","Село Дивное","07605419"]
[30,"Апанасенковский муниципальный район","Село Киевка","07605422"]
[31,"Апанасенковский муниципальный район","Село Малая Джалга","07605425"]
[32,"Апанасенковский муниципальный район","Село Манычское","07605428"]
[33,"Апанасенковский муниципальный район","Село Рагули","07605431"]
[34,"Арзгирский муниципальный район","Арзгирский муниципальный район","07607000"]
[35,"Арзгирский муниципальный район","Арзгирский сельсовет","07607402"]
[36,"Арзгирский муниципальный район","Новоромановский сельсовет","07607404"]
[37,"Арзгирский муниципальный район","Село Каменная Балка","07607403"]
[38,"Арзгирский муниципальный район","Село Петропавловское","07607407"]
[39,"Арзгирский муниципальный район","Село Родниковское","07607410"]
[40,"Арзгирский муниципальный район","Село Садовое","07607413"]
[41,"Арзгирский муниципальный район","Село Серафимовское","07607416"]
[42,"Арзгирский муниципальный район","Чограйский сельсовет","07607422"]
[43,"Благодарненский муниципальный район","Cело Елизаветинское","07610410"]
[44,"Благодарненский муниципальный район","Александрийский сельсовет","07610402"]
[45,"Благодарненский муниципальный район","Аул Эдельбай","07610428"]
[46,"Благодарненский муниципальный район","Благодарненский муниципальный район","07610000"]
[47,"Благодарненский муниципальный район","Город Благодарный","07610101"]
[48,"Благодарненский муниципальный район","Каменнобалковский сельсовет","07610413"]
[49,"Благодарненский муниципальный район","Красноключевский сельсовет","07610416"]
[50,"Благодарненский муниципальный район","Село Алексеевское","07610404"]
[51,"Благодарненский муниципальный район","Село Бурлацкое","07610407"]
[52,"Благодарненский муниципальный район","Село Мирное","07610417"]
[53,"Благодарненский муниципальный район","Село Сотниковское","07610419"]
[54,"Благодарненский муниципальный район","Село Спасское","07610422"]
[55,"Благодарненский муниципальный район","Село Шишкино","07610427"]
[56,"Благодарненский муниципальный район","Ставропольский сельсовет","07610425"]
[57,"Благодарненский муниципальный район","Хутор Большевик","07610406"]
[58,"Буденновский муниципальный район","Архиповский сельсовет","07612404"]
[59,"Буденновский муниципальный район","Буденновский муниципальный район","07612000"]
[60,"Буденновский муниципальный район","Город Буденновск","07612101"]
[61,"Буденновский муниципальный район","Искровский сельсовет","07612407"]
[62,"Буденновский муниципальный район","Краснооктябрьский сельсовет","07612409"]
[63,"Буденновский муниципальный район","Новожизненский сельсовет","07612410"]
[64,"Буденновский муниципальный район","Орловский сельсовет","07612413"]
[65,"Буденновский муниципальный район","Покойненский сельсовет","07612416"]
[66,"Буденновский муниципальный район","Преображенский сельсовет","07612420"]
[67,"Буденновский муниципальный район","Село Архангельское","07612402"]
[68,"Буденновский муниципальный район","Село Прасковея","07612419"]
[69,"Буденновский муниципальный район","Село Толстово-Васюковское","07612427"]
[70,"Буденновский муниципальный район","Стародубский сельсовет","07612422"]
[71,"Буденновский муниципальный район","Терский сельсовет","07612425"]
[72,"Буденновский муниципальный район","Томузловский сельсовет","07612429"]
[73,"Георгиевский муниципальный район","Александрийский сельсовет","07615402"]
[74,"Георгиевский муниципальный район","Балковский сельсовет","07615403"]
[75,"Георгиевский муниципальный район","Георгиевский муниципальный район","07615000"]
[76,"Георгиевский муниципальный район","Крутоярский сельсовет","07615408"]
[77,"Георгиевский муниципальный район","Незлобненский сельсовет","07615413"]
[78,"Георгиевский муниципальный район","Поселок Новый","07615415"]
[79,"Георгиевский муниципальный район","Село Краснокумское","07615406"]
[80,"Георгиевский муниципальный район","Село Новозаведенное","07615416"]
[81,"Георгиевский муниципальный район","Село Обильное","07615419"]
[82,"Георгиевский муниципальный район","Станица Георгиевская","07615404"]
[83,"Георгиевский муниципальный район","Станица Лысогорская","07615410"]
[84,"Георгиевский муниципальный район","Станица Подгорная","07615422"]
[85,"Георгиевский муниципальный район","Ульяновский сельсовет","07615425"]
[86,"Георгиевский муниципальный район","Урухский сельсовет","07615428"]
[87,"Георгиевский муниципальный район","Шаумяновский сельсовет","07615431"]
[88,"Город Георгиевск","Город Георгиевск","07707000"]
[89,"Город Лермонтов","Город Лермонтов","07718000"]
[90,"Город Невинномысск","Город Невинномысск","07724000"]
[91,"Город Ставрополь","Город Ставрополь","07701000"]
[92,"Город-курорт Ессентуки","Город-курорт Ессентуки","07710000"]
[93,"Город-курорт Железноводск","Город-курорт Железноводск","07712000"]
[94,"Город-курорт Кисловодск","Город-курорт Кисловодск","07715000"]
[95,"Город-курорт Пятигорск","Город-курорт Пятигорск","07727000"]
[96,"Грачевский муниципальный район","Грачевский муниципальный район","07617000"]
[97,"Грачевский муниципальный район","Грачевский сельсовет","07617404"]
[98,"Грачевский муниципальный район","Красный сельсовет","07617407"]
[99,"Грачевский муниципальный район","Кугультинский сельсовет","07617410"]
[100,"Грачевский муниципальный район","Село Бешпагир","07617401"]
[101,"Грачевский муниципальный район","Село Тугулук","07617422"]
[102,"Грачевский муниципальный район","Сергиевский сельсовет","07617413"]
[103,"Грачевский муниципальный район","Спицевский сельсовет","07617416"]
[104,"Грачевский муниципальный район","Старомарьевский сельсовет","07617419"]
[105,"Изобильненский муниципальный район","Город Изобильный","07620101"]
[106,"Изобильненский муниципальный район","Изобильненский муниципальный район","07620000"]
[107,"Изобильненский муниципальный район","Каменнобродский сельсовет","07620404"]
[108,"Изобильненский муниципальный район","Московский сельсовет","07620407"]
[109,"Изобильненский муниципальный район","Новоизобильненский сельсовет","07620409"]
[110,"Изобильненский муниципальный район","Передовой сельсовет","07620412"]
[111,"Изобильненский муниципальный район","Подлужненский сельсовет","07620413"]
[112,"Изобильненский муниципальный район","Поселок Рыздвяный","07620153"]
[113,"Изобильненский муниципальный район","Поселок Солнечнодольск","07620155"]
[114,"Изобильненский муниципальный район","Рождественский сельсовет","07620416"]
[115,"Изобильненский муниципальный район","Село Птичье","07620414"]
[116,"Изобильненский муниципальный район","Село Тищенское","07620422"]
[117,"Изобильненский муниципальный район","Станица Баклановская","07620402"]
[118,"Изобильненский муниципальный район","Станица Новотроицкая","07620410"]
[119,"Изобильненский муниципальный район","Староизобильненский сельсовет","07620419"]
[120,"Изобильненский муниципальный район","Хутор Спорный","07620418"]
[121,"Ипатовский муниципальный район","Большевистский сельсовет","07622402"]
[122,"Ипатовский муниципальный район","Винодельненский сельсовет","07622410"]
[123,"Ипатовский муниципальный район","Город Ипатово","07622101"]
[124,"Ипатовский муниципальный район","Добровольно-Васильевский сельсовет","07622413"]
[125,"Ипатовский муниципальный район","Золотаревский сельсовет","07622416"]
[126,"Ипатовский муниципальный район","Ипатовский муниципальный район","07622000"]
[127,"Ипатовский муниципальный район","Кевсалинский сельсовет","07622422"]
[128,"Ипатовский муниципальный район","Красочный сельсовет","07622425"]
[129,"Ипатовский муниципальный район","Леснодачненский сельсовет","07622427"]
[130,"Ипатовский муниципальный район","Лиманский сельсовет","07622428"]
[131,"Ипатовский муниципальный район","Мало-Барханчакский сельсовет","07622429"]
[132,"Ипатовский муниципальный район","Октябрьский сельсовет","07622431"]
[133,"Ипатовский муниципальный район","Первомайский сельсовет","07622434"]
[134,"Ипатовский муниципальный район","Село Большая Джалга","07622404"]
[135,"Ипатовский муниципальный район","Село Бурукшун","07622407"]
[136,"Ипатовский муниципальный район","Советскорунный сельсовет","07622437"]
[137,"Ипатовский муниципальный район","Тахтинский сельсовет","07622440"]
[138,"Кировский муниципальный район","Горнозаводской сельсовет","07625402"]
[139,"Кировский муниципальный район","Город Новопавловск","07625101"]
[140,"Кировский муниципальный район","Зольский сельсовет","07625404"]
[141,"Кировский муниципальный район","Кировский муниципальный район","07625000"]
[142,"Кировский муниципальный район","Комсомольский сельсовет","07625407"]
[143,"Кировский муниципальный район","Новосредненский сельсовет","07625416"]
[144,"Кировский муниципальный район","Орловский сельсовет","07625417"]
[145,"Кировский муниципальный район","Посёлок Фазанный","07625428"]
[146,"Кировский муниципальный район","Советский сельсовет","07625419"]
[147,"Кировский муниципальный район","Станица Марьинская","07625410"]
[148,"Кировский муниципальный район","Старопавловский сельсовет","07625422"]
[149,"Кочубеевский муниципальный район","Балахоновский сельсовет","07628402"]
[150,"Кочубеевский муниципальный район","Барсуковский сельсовет","07628404"]
[151,"Кочубеевский муниципальный район","Васильевский сельсовет","07628440"]
[152,"Кочубеевский муниципальный район","Вревский сельсовет","07628407"]
[153,"Кочубеевский муниципальный район","Георгиевский сельсовет","07628408"]
[154,"Кочубеевский муниципальный район","Заветненский сельсовет","07628413"]
[155,"Кочубеевский муниципальный район","Ивановский сельсовет","07628416"]
[156,"Кочубеевский муниципальный район","Казьминский сельсовет","07628419"]
[157,"Кочубеевский муниципальный район","Кочубеевский муниципальный район","07628000"]
[158,"Кочубеевский муниципальный район","Мищенский сельсовет","07628423"]
[159,"Кочубеевский муниципальный район","Надзорненский сельсовет","07628424"]
[160,"Кочубеевский муниципальный район","Новодеревенский сельсовет","07628425"]
[161,"Кочубеевский муниципальный район","Село Кочубеевское","07628422"]
[162,"Кочубеевский муниципальный район","Станица Беломечетская","07628406"]
[163,"Кочубеевский муниципальный район","Стародворцовский сельсовет","07628430"]
[164,"Кочубеевский муниципальный район","Усть-Невинский сельсовет","07628435"]
[165,"Красногвардейский муниципальный район","Коммунаровский сельсовет","07630404"]
[166,"Красногвардейский муниципальный район","Красногвардейский муниципальный район","07630000"]
[167,"Красногвардейский муниципальный район","Медвеженский сельсовет","07630413"]
[168,"Красногвардейский муниципальный район","Привольненский сельсовет","07630425"]
[169,"Красногвардейский муниципальный район","Родыковский сельсовет","07630428"]
[170,"Красногвардейский муниципальный район","Село Дмитриевское","07630402"]
[171,"Красногвардейский муниципальный район","Село Красногвардейское","07630407"]
[172,"Красногвардейский муниципальный район","Село Ладовская Балка","07630410"]
[173,"Красногвардейский муниципальный район","Село Новомихайловское","07630416"]
[174,"Красногвардейский муниципальный район","Село Покровское","07630419"]
[175,"Красногвардейский муниципальный район","Село Преградное","07630422"]
[176,"Красногвардейский муниципальный район","Штурмовский сельсовет","07630443"]
[177,"Курский муниципальный район","Балтийский сельсовет","07633402"]
[178,"Курский муниципальный район","Галюгаевский сельсовет","07633404"]
[179,"Курский муниципальный район","Кановский сельсовет","07633406"]
[180,"Курский муниципальный район","Курский муниципальный район","07633000"]
[181,"Курский муниципальный район","Курский сельсовет","07633407"]
[182,"Курский муниципальный район","Мирненский сельсовет","07633410"]
[183,"Курский муниципальный район","Полтавский сельсовет","07633413"]
[184,"Курский муниципальный район","Ростовановский сельсовет","07633416"]
[185,"Курский муниципальный район","Рощинский сельсовет","07633419"]
[186,"Курский муниципальный район","Русский сельсовет","07633422"]
[187,"Курский муниципальный район","Село Эдиссия","07633428"]
[188,"Курский муниципальный район","Серноводский сельсовет","07633425"]
[189,"Курский муниципальный район","Станица Стодеревская","07633426"]
[190,"Левокумский муниципальный район","Бургун-Маджарский сельсовет","07636402"]
[191,"Левокумский муниципальный район","Величаевский сельсовет","07636404"]
[192,"Левокумский муниципальный район","Владимировский сельсовет","07636407"]
[193,"Левокумский муниципальный район","Заринский сельсовет","07636409"]
[194,"Левокумский муниципальный район","Левокумский муниципальный район","07636000"]
[195,"Левокумский муниципальный район","Николо-Александровский сельсовет","07636413"]
[196,"Левокумский муниципальный район","Поселок Новокумский","07636414"]
[197,"Левокумский муниципальный район","Село Левокумское","07636410"]
[198,"Левокумский муниципальный район","Село Правокумское","07636416"]
[199,"Левокумский муниципальный район","Село Приозерское","07636417"]
[200,"Левокумский муниципальный район","Село Урожайное","07636422"]
[201,"Левокумский муниципальный район","Турксадский сельсовет","07636419"]
[202,"Минераловодский муниципальный район","Город Минеральные Воды","07639101"]
[203,"Минераловодский муниципальный район","Гражданский сельсовет","07639402"]
[204,"Минераловодский муниципальный район","Левокумский сельсовет","07639421"]
[205,"Минераловодский муниципальный район","Ленинский сельсовет","07639407"]
[206,"Минераловодский муниципальный район","Марьино-Колодцевский сельсовет","07639410"]
[207,"Минераловодский муниципальный район","Минераловодский муниципальный район","07639000"]
[208,"Минераловодский муниципальный район","Нижнеалександровский сельсовет","07639416"]
[209,"Минераловодский муниципальный район","Первомайский сельсовет","07639418"]
[210,"Минераловодский муниципальный район","Перевальненский сельсовет","07639420"]
[211,"Минераловодский муниципальный район","Побегайловский сельсовет","07639419"]
[212,"Минераловодский муниципальный район","Поселок Анджиевский","07639152"]
[213,"Минераловодский муниципальный район","Прикумский сельсовет","07639422"]
[214,"Минераловодский муниципальный район","Розовский сельсовет","07639425"]
[215,"Минераловодский муниципальный район","Село Греческое","07639404"]
[216,"Минераловодский муниципальный район","Село Нагутское","07639413"]
[217,"Минераловодский муниципальный район","Ульяновский сельсовет","07639430"]
[218,"Нефтекумский муниципальный район","Город Нефтекумск","07641101"]
[219,"Нефтекумский муниципальный район","Закумский сельсовет","07641403"]
[220,"Нефтекумский муниципальный район","Зимнеставочный сельсовет","07641404"]
[221,"Нефтекумский муниципальный район","Зункарский сельсовет","07641405"]
[222,"Нефтекумский муниципальный район","Кара-Тюбинский сельсовет","07641407"]
[223,"Нефтекумский муниципальный район","Каясулинский сельсовет","07641410"]
[224,"Нефтекумский муниципальный район","Махмуд-Мектебский сельсовет","07641413"]
[225,"Нефтекумский муниципальный район","Нефтекумский муниципальный район","07641000"]
[226,"Нефтекумский муниципальный район","Новкус-Артезианский сельсовет","07641416"]
[227,"Нефтекумский муниципальный район","Озек-Суатский сельсовет","07641419"]
[228,"Нефтекумский муниципальный район","Поселок Затеречный","07641153"]
[229,"Нефтекумский муниципальный район","Село Ачикулак","07641402"]
[230,"Нефтекумский муниципальный район","Тукуй-Мектебский сельсовет","07641422"]
[231,"Новоалександровский муниципальный район","Город Новоалександровск","07643101"]
[232,"Новоалександровский муниципальный район","Горьковский сельсовет","07643402"]
[233,"Новоалександровский муниципальный район","Григорополисский сельсовет","07643404"]
[234,"Новоалександровский муниципальный район","Краснозоринский сельсовет","07643407"]
[235,"Новоалександровский муниципальный район","Красночервонный сельсовет","07643423"]
[236,"Новоалександровский муниципальный район","Новоалександровский муниципальный район","07643000"]
[237,"Новоалександровский муниципальный район","Присадовый сельсовет","07643410"]
[238,"Новоалександровский муниципальный район","Радужский сельсовет","07643412"]
[239,"Новоалександровский муниципальный район","Раздольненский сельсовет","07643413"]
[240,"Новоалександровский муниципальный район","Светлинский сельсовет","07643417"]
[241,"Новоалександровский муниципальный район","Станица Кармалиновская","07643406"]
[242,"Новоалександровский муниципальный район","Станица Расшеватская","07643416"]
[243,"Новоалександровский муниципальный район","Темижбекский сельсовет","07643419"]
[244,"Новоселицкий муниципальный район","Журавский сельсовет","07644404"]
[245,"Новоселицкий муниципальный район","Новомаякский сельсовет","07644409"]
[246,"Новоселицкий муниципальный район","Новоселицкий муниципальный район","07644000"]
[247,"Новоселицкий муниципальный район","Поселок Щелкан","07644420"]
[248,"Новоселицкий муниципальный район","Село Долиновка","07644402"]
[249,"Новоселицкий муниципальный район","Село Китаевское","07644407"]
[250,"Новоселицкий муниципальный район","Село Новоселицкое","07644410"]
[251,"Новоселицкий муниципальный район","Село Падинское","07644412"]
[252,"Новоселицкий муниципальный район","Село Чернолесское","07644413"]
[253,"Петровский муниципальный район","Высоцкий сельсовет","07646404"]
[254,"Петровский муниципальный район","Город Светлоград","07646101"]
[255,"Петровский муниципальный район","Дон-Балковский сельсовет","07646410"]
[256,"Петровский муниципальный район","Константиновский сельсовет","07646413"]
[257,"Петровский муниципальный район","Петровский муниципальный район","07646000"]
[258,"Петровский муниципальный район","Прикалаусский сельсовет","07646417"]
[259,"Петровский муниципальный район","Просянский сельсовет","07646418"]
[260,"Петровский муниципальный район","Рогато-Балковский сельсовет","07646419"]
[261,"Петровский муниципальный район","Село Благодатное","07646402"]
[262,"Петровский муниципальный район","Село Гофицкое","07646407"]
[263,"Петровский муниципальный район","Село Николина Балка","07646416"]
[264,"Петровский муниципальный район","Село Сухая Буйвола","07646422"]
[265,"Петровский муниципальный район","Село Шведино","07646428"]
[266,"Петровский муниципальный район","Шангалинский сельсовет","07646425"]
[267,"Предгорный муниципальный район","Винсадский сельсовет","07648410"]
[268,"Предгорный муниципальный район","Ессентукский сельсовет","07648413"]
[269,"Предгорный муниципальный район","Нежинский сельсовет","07648416"]
[270,"Предгорный муниципальный район","Новоблагодарненский сельсовет","07648422"]
[271,"Предгорный муниципальный район","Подкумский сельсовет","07648424"]
[272,"Предгорный муниципальный район","Поселок Мирный","07648415"]
[273,"Предгорный муниципальный район","Предгорный муниципальный район","07648000"]
[274,"Предгорный муниципальный район","Пригородный сельсовет","07648425"]
[275,"Предгорный муниципальный район","Пятигорский сельсовет","07648428"]
[276,"Предгорный муниципальный район","Станица Бекешевская","07648402"]
[277,"Предгорный муниципальный район","Станица Боргустанская","07648407"]
[278,"Предгорный муниципальный район","Суворовский сельсовет","07648431"]
[279,"Предгорный муниципальный район","Тельмановский сельсовет","07648432"]
[280,"Предгорный муниципальный район","Этокский сельсовет","07648434"]
[281,"Предгорный муниципальный район","Юцкий сельсовет","07648437"]
[282,"Предгорный муниципальный район","Яснополянский сельсовет","07648440"]
[283,"Советский муниципальный район","Восточный сельсовет","07650402"]
[284,"Советский муниципальный район","Город Зеленокумск","07650101"]
[285,"Советский муниципальный район","Нинский сельсовет","07650407"]
[286,"Советский муниципальный район","Правокумский сельсовет","07650413"]
[287,"Советский муниципальный район","Село Горькая Балка","07650404"]
[288,"Советский муниципальный район","Село Отказное","07650410"]
[289,"Советский муниципальный район","Советский муниципальный район","07650000"]
[290,"Советский муниципальный район","Солдато-Александровский сельсовет","07650416"]
[291,"Степновский муниципальный район","Богдановский сельсовет","07652402"]
[292,"Степновский муниципальный район","Варениковский сельсовет","07652404"]
[293,"Степновский муниципальный район","Верхнестепновский сельсовет","07652407"]
[294,"Степновский муниципальный район","Иргаклинский сельсовет","07652410"]
[295,"Степновский муниципальный район","Ольгинский сельсовет","07652415"]
[296,"Степновский муниципальный район","Село Соломенское","07652420"]
[297,"Степновский муниципальный район","Степновский муниципальный район","07652000"]
[298,"Степновский муниципальный район","Степновский сельсовет","07652426"]
[299,"Труновский муниципальный район","Безопасненский сельсовет","07654402"]
[300,"Труновский муниципальный район","Донской сельсовет","07654404"]
[301,"Труновский муниципальный район","Кировский сельсовет","07654407"]
[302,"Труновский муниципальный район","Село Новая Кугульта","07654410"]
[303,"Труновский муниципальный район","Село Подлесное","07654413"]
[304,"Труновский муниципальный район","Труновский муниципальный район","07654000"]
[305,"Труновский муниципальный район","Труновский сельсовет","07654416"]
[306,"Туркменский муниципальный район","Владимировский сельсовет","07656401"]
[307,"Туркменский муниципальный район","Кендже-Кулакский сельсовет","07656407"]
[308,"Туркменский муниципальный район","Красноманычский сельсовет","07656410"]
[309,"Туркменский муниципальный район","Куликово-Копанский сельсовет","07656413"]
[310,"Туркменский муниципальный район","Кучерлинский сельсовет","07656416"]
[311,"Туркменский муниципальный район","Летнеставочный сельсовет","07656419"]
[312,"Туркменский муниципальный район","Новокучерлинский сельсовет","07656424"]
[313,"Туркменский муниципальный район","Овощинский сельсовет","07656426"]
[314,"Туркменский муниципальный район","Село Казгулак","07656402"]
[315,"Туркменский муниципальный район","Село Камбулат","07656404"]
[316,"Туркменский муниципальный район","Село Малые Ягуры","07656422"]
[317,"Туркменский муниципальный район","Туркменский муниципальный район","07656000"]
[318,"Шпаковский муниципальный район","Верхнерусский сельсовет","07658402"]
[319,"Шпаковский муниципальный район","Город Михайловск","07658101"]
[320,"Шпаковский муниципальный район","Деминский сельсовет","07658404"]
[321,"Шпаковский муниципальный район","Дубовский сельсовет","07658406"]
[322,"Шпаковский муниципальный район","Казинский сельсовет","07658408"]
[323,"Шпаковский муниципальный район","Надеждинский сельсовет","07658410"]
[324,"Шпаковский муниципальный район","Пелагиадский сельсовет","07658416"]
[325,"Шпаковский муниципальный район","Сенгилеевский сельсовет","07658419"]
[326,"Шпаковский муниципальный район","Станица Новомарьевская","07658413"]
[327,"Шпаковский муниципальный район","Татарский сельсовет","07658422"]
[328,"Шпаковский муниципальный район","Темнолесский сельсовет","07658425"]
[329,"Шпаковский муниципальный район","Цимлянский сельсовет","07658428"]
[330,"Шпаковский муниципальный район","Шпаковский муниципальный район","07658000"]

{"sheet":"modfrmReestrMR","index":38,"n_rows":0,"n_cols":0,"rows_kept":0,"cut":false,"hidden":true,"merged":[]}

{"sheet":"modfrmCheckUpdates","index":39,"n_rows":0,"n_cols":0,"rows_kept":0,"cut":false,"hidden":true,"merged":[]}

{"sheet":"CopyList","index":40,"n_rows":13,"n_cols":9,"rows_kept":13,"cut":false,"hidden":true,"merged":[]}
[]
[]
[]
[]
[]
[]
[]
[]
[]
[]
[]
[null,null,null,null,"Наименование поставщика",null,"№ п/п","Способ приобретения"]
[null,null,null,null,null,null,null,"Способ приобретения","Реквизиты договора"]